Workbook

Sheet charts
B2: TAB: CHARTS
B4: =calc!D10 & " probability distribution function (pdf)" -> Normal probability distribution function (pdf) | H4: =calc!D10 & " cumulative probability distribution function (cdf)" -> Normal cumulative probability distribution function (cdf) | N4: Historical sample
B21: Histogram | H21: ="Transformation of " & IF(calc!K23=1, calc!D16, calc!D10) & "-distributed sample into uniform sample" -> Transformation of Normal-distributed sample into uniform sample | N21: Histogram and pdf fit

Sheet test
B2: TAB: DISTRIBUTION TESTS AND SAMPLE HISTOGRAM
B4: Selected distribution | G4: Histogram | R4: Distribution tests
B6: Sample size | C6: =calc!D23 -> 175 | G6: =calc!I8 -> Matched or alternative distribution based on generated sampe | M6: =calc!I14 -> Matched distribution based on historical sample | S6: Test | T6: =calc!K24 -> Kolmogorov-Smirnov
S7: Sample | T7: =IF(calc!K23=1, "Historical", "Generated") -> Historical
I8: =SUM(I11:I34) -> 0.6742857143 | K8: =SUM(K11:K34) -> 0.7414120305 | N8: =SUM(N11:N34) -> 0.7542857143 | P8: =SUM(P11:P34) -> 0.7113205961
B9: Name | C9: Parameters | V9: Parameters | Y9: Statistics
C10: p1 | D10: p2 | E10: p3 | G10: # | H10: x | I10: histogram - matched distribution | J10: normal fit - matched distribution | K10: ="pdf - " & calc!$D$10 -> pdf - Normal | M10: =H10 -> x | N10: histogram | O10: normal fit - actual distribution | P10: =calc!$D$16 & " distribution" -> Normal distribution | R10: # | S10: Distribution | T10: statistics | U10: p-value | V10: p1 | W10: p2 | X10: p3 | Y10: mean | Z10: stdev | AA10: mode
B11: =IF(calc!K23=1, calc!D16, calc!D10) -> Normal | C11: =IF(calc!$K$23=1, IF(config!T17="", "", config!T17), IF(config!T8="", "", config!T8)) -> mean | D11: =IF(calc!$K$23=1, IF(config!U17="", "", config!U17), IF(config!U8="", "", config!U8)) -> stdev | E11: =IF(calc!$K$23=1, IF(config!V17="", "", config!V17), IF(config!V8="", "", config!V8)) ->  | G11: 1 | H11: =_xll.AC.data._get(calc!K11, "", 0) -> 0.07482934648 | I11: 0.005714285714 | J11: 0.001073149367 | K11: =_xll.AC.data._get(calc!K13, "", 0) -> 0.0008971003627 | M11: =_xll.AC.data._get(calc!K17, "", 0) -> 0.06559563785 | N11: 0.01142857143 | O11: 0.0007515458404 | P11: =_xll.AC.data._get(calc!K19, "", 0) -> 0.0007515458404 | R11: 1 | S11: =B11 -> Normal | U11: =_xll.AC.stats.distrib.get(calc!K26, config!N27) -> 0.2530761841 | V11: =IF(C12="", "", C12) -> 0.4574605287 | W11: =IF(D12="", "", D12) -> 0.1459658162 | X11: =IF(E12="", "", E12) -> 
C12: =IF(calc!$K$23=1, IF(config!T18="", "", config!T18), IF(config!T9="", "", config!T9)) -> 0.4574605287 | D12: =IF(calc!$K$23=1, IF(config!U18="", "", config!U18), IF(config!U9="", "", config!U9)) -> 0.1459658162 | E12: =IF(calc!$K$23=1, IF(config!V18="", "", config!V18), IF(config!V9="", "", config!V9)) ->  | G12: =G11+1 -> 2 | H12: 0.09521679687 | I12: 0 | J12: 0.002960138725 | K12: 0.002562389338 | M12: 0.08579622106 | N12: 0.005714285714 | O12: 0.002158646329 | P12: 0.002158646329
G13: =IF(G12>=$D$34, "", G12+1) -> 3 | H13: 0.1156042473 | I13: 0 | J13: 0.004013465983 | K13: 0.003588779556 | M13: 0.1059968043 | N13: 0.01142857143 | O13: 0.003041303003 | P13: 0.003041303003 | R13: 1 | S13: =config!C8 -> Beta | U13: =_xll.AC.data._get(calc!K32, "", 0) -> 1.707078923e-12 | V13: =_xll.AC.data._get(calc!K31, "X", 0) -> 1e-05 | W13: 1.185980947e-05 | Y13: =V13/(V13+W13) -> 0.4574605287 | AA13: =(V13-1)/(V13+W13-2) -> 0.500000465
B14: Matching between generated and theoretical statistics | G14: 4 | H14: 0.1359916976 | I14: 0.01714285714 | J14: 0.005349494372 | K14: 0.004929195226 | M14: 0.1261973875 | N14: 0 | O14: 0.004203587214 | P14: 0.004203587214 | R14: =R13+1 -> 2 | S14: =config!C9 -> Chi-squred | U14: 4.073186233e-12 | V14: 0.4574605287 | Y14: =V14 -> 0.4574605287
G15: 5 | H15: 0.156379148 | I15: 0.01142857143 | J15: 0.007009572151 | K15: 0.006639461079 | M15: 0.1463979707 | N15: 0.01142857143 | O15: 0.00569983926 | P15: 0.00569983926 | R15: =R14+1 -> 3 | S15: =config!C10 -> Exponential | U15: 1.063815702e-12 | V15: 2.185980947 | Y15: =1/V15 -> 0.4574605287
B16: =calc!B8 -> Matched or alternative distribution based on generated sampe | G16: 6 | H16: 0.1767665984 | I16: 0.005714285714 | J16: 0.009029338045 | K16: 0.008770355807 | M16: 0.1665985539 | N16: 0 | O16: 0.007582061955 | P16: 0.007582061955 | R16: 4 | S16: =config!C11 -> Fisher | U16: 1.070032951e-12 | V16: 1 | W16: 1 | Y16: =V16/(V16-2) -> -1 | AA16: =V16*(W16-2) / (W16*(V16+2)) -> -0.3333333333
B17: Statistics | C17: Generated | D17: Theoretical | E17: Sample | G17: 7 | H17: 0.1971540488 | I17: 0.005714285714 | J17: 0.01143420414 | K17: 0.01136132986 | M17: 0.1867991371 | N17: 0.01714285714 | O17: 0.009894508451 | P17: 0.009894508451 | R17: 5 | S17: =config!C12 -> Gamma | U17: 0 | V17: 9.822113195 | W17: 21.47095231 | Y17: =V17/W17 -> 0.4574605287 | Z17: =SQRT(V17/(W17*W17)) -> 0.1459658162
B18: Mean | C18: =data!E4 -> 0.4675256992 | D18: =IF(OFFSET(config!M7, calc!$D$9, 0)="", "", OFFSET(config!M7, calc!$D$9, 0)) -> 0.4574605287 | E18: =_xll.AC.stats.sample.moment.mean(calc!D26) -> 0.4689441919 | G18: 8 | H18: 0.2175414992 | I18: 0.01714285714 | J18: 0.01423447971 | K18: 0.01443340171 | M18: 0.2069997204 | N18: 0.01142857143 | O18: 0.01266727775 | P18: 0.01266727775 | R18: 6 | S18: =config!C13 -> Geometric | U18: 0 | V18: 1 | Y18: =1/V18 -> 1
B19: Standard deviation | C19: =data!E5 -> 0.1378120771 | D19: =IF(OFFSET(config!N7, calc!$D$9, 0)="", "", OFFSET(config!N7, calc!$D$9, 0)) -> 0.1459658162 | E19: =_xll.AC.stats.sample.moment.stdev(calc!D26) -> 0.1560335007 | G19: 9 | H19: 0.2379289496 | I19: 0.02857142857 | J19: 0.01742059083 | K19: 0.01798190927 | M19: 0.2272003036 | N19: 0.01142857143 | O19: 0.01590942695 | P19: 0.01590942695 | R19: 7 | S19: =config!C14 -> Laplace | U19: 0.3612333069 | V19: 0.4574605287 | W19: 0.1032134185 | Y19: =V19 -> 0.4574605287 | Z19: =SQRT(2*W19*W19) -> 0.1459658162
B20: Mode | C20: =data!E6 -> 0.4576392364 | D20: =IF(OFFSET(config!O7, calc!$D$9, 0)="", "", OFFSET(config!O7, calc!$D$9, 0)) ->  | E20: =_xll.AC.stats.sample.moment.mode(calc!D27) -> 0.5126499196 | G20: 10 | H20: 0.2583163999 | I20: 0.01714285714 | J20: 0.02095896295 | K20: 0.02197002131 | M20: 0.2474008868 | N20: 0.02285714286 | O20: 0.01960234169 | P20: 0.01960234169 | R20: 8 | S20: =config!C15 -> Logistic | U20: 0.3371979351 | V20: 0.4574605287 | W20: 0.08047517223 | Y20: =V20 -> 0.4574605287 | Z20: =SQRT(PI()*PI()*W20*W20/3) -> 0.1459658162
G21: 11 | H21: 0.2787038503 | I21: 0.01142857143 | J21: 0.02478918943 | K21: 0.02632405124 | M21: 0.26760147 | N21: 0.005714285714 | O21: 0.02369428173 | P21: 0.02369428173 | R21: 9 | S21: =config!C16 -> Log-Normal | U21: 0.002724707352 | V21: -0.8305423073 | W21: 0.3113764068 | Y21: =EXP(V21+W21*W21/2) -> 0.4574605287 | Z21: =SQRT((EXP(W21*W21)-1)*EXP(2*V21+W21*W21)) -> 0.1459658162
B22: =calc!B14 -> Matched distribution based on historical sample | G22: 12 | H22: 0.2990913007 | I22: 0.01714285714 | J22: 0.02882308679 | K22: 0.03093161173 | M22: 0.2878020532 | N22: 0.01714285714 | O22: 0.02809708822 | P22: 0.02809708822 | R22: 10 | S22: =config!C17 -> Normal | U22: 0.2530761841 | V22: 0.4574605287 | W22: 0.1459658162 | Y22: 0.4574605287 | Z22: =W22 -> 0.1459658162
B23: Statistics | C23: Generated | D23: Theoretical | E23: Sample | G23: 13 | H23: 0.3194787511 | I23: 0.04 | J23: 0.03294612027 | K23: 0.03564346742 | M23: 0.3080026364 | N23: 0.01714285714 | O23: 0.03268596089 | P23: 0.03268596089 | R23: 11 | S23: =config!C18 -> Poisson | U23: 0.00135085702 | V23: 9.822113195 | W23: 21.47095231 | Y23: =V23/W23 -> 0.4574605287 | Z23: =SQRT(V23)/W23 -> 0.1459658162
B24: Mean | C24: =data!M4 -> 0.4648700158 | D24: =IF(OFFSET(config!M7, calc!$D$15, 0)="", "", OFFSET(config!M7, calc!$D$15, 0)) -> 0.4574605287 | E24: =_xll.AC.stats.sample.moment.mean(calc!D31) -> 0.4574605287 | G24: 14 | H24: 0.3398662015 | I24: 0.04571428571 | J24: 0.03702147317 | K24: 0.04027957827 | M24: 0.3282032197 | N24: 0.05142857143 | O24: 0.03730296672 | P24: 0.03730296672 | R24: 12 | S24: =config!C19 -> Student T | U24: 1.60760294e-13 | V24: 1 | Z24: =IF(V24>2, SQRT(V24/(V24-2)), "") -> 
B25: Standard deviation | C25: =data!M5 -> 0.1398713547 | D25: =IF(OFFSET(config!N7, calc!$D$15, 0)="", "", OFFSET(config!N7, calc!$D$15, 0)) -> 0.1459658162 | E25: =_xll.AC.stats.sample.moment.stdev(calc!D31) -> 0.1459658162 | G25: 15 | H25: 0.3602536519 | I25: 0.04 | J25: 0.04089674466 | K25: 0.04463930836 | M25: 0.3484038029 | N25: 0.03428571429 | O25: 0.04176453625 | P25: 0.04176453625 | R25: 13 | S25: =config!C20 -> Triangular | U25: 0.1175667138 | V25: 0.06048314456 | W25: 0.8585308766 | X25: 0.4533675651 | Y25: =(V25+W25+X25)/3 -> 0.4574605287
B26: Mode | C26: =data!M6 -> 0.4574966956 | D26: =IF(OFFSET(config!O7, calc!$D$15, 0)="", "", OFFSET(config!O7, calc!$D$15, 0)) ->  | E26: =_xll.AC.stats.sample.moment.mode(calc!D32) -> 0.4580267335 | G26: 16 | H26: 0.3806411022 | I26: 0.06285714286 | J26: 0.04441292848 | K26: 0.04851517166 | M26: 0.3686043861 | N26: 0.02285714286 | O26: 0.04587268157 | P26: 0.04587268157 | R26: 14 | S26: =config!C21 -> Uniform | U26: 3.866594625e-06 | V26: 0.06048314456 | W26: 0.8585308766 | Y26: =(V26+W26)/2 -> 0.4595070106
G27: 17 | H27: 0.4010285526 | I27: 0.05142857143 | J27: 0.04741499485 | K27: 0.05170889546 | M27: 0.3888049693 | N27: 0.05142857143 | O27: 0.04942910738 | P27: 0.04942910738
B28: Histogram parameters | G28: 18 | H28: 0.421416003 | I28: 0.04571428571 | J28: 0.04976312347 | K28: 0.05404811137 | M28: 0.4090055525 | N28: 0.03428571429 | O28: 0.0522508767 | P28: 0.0522508767
G29: 19 | H29: 0.4418034534 | I29: 0.04 | J29: 0.05134346598 | K29: 0.055401734 | M29: 0.4292061357 | N29: 0.04 | O29: 0.05418593479 | P29: 0.05418593479 | Y29: =3*Y21 -> 1.372381586
B30: Parameter | C30: Key | D30: Value | G30: 20 | H30: 0.4621909038 | I30: 0.03428571429 | J30: 0.0520772881 | K30: 0.05569212201 | M30: 0.449406719 | N30: 0.1085714286 | O30: 0.05512666666 | P30: 0.05512666666
D31: generated | E31: historical | G31: 21 | H31: 0.4825783542 | I31: 0.04571428571 | J31: 0.05192747019 | K31: 0.05490245281 | M31: 0.4696073022 | N31: 0.06285714286 | O31: 0.05501980795 | P31: 0.05501980795
B32: Minimum value | C32: x-min | D32: =OFFSET(config!P7, calc!D9, 0) -> 0.01956308004 | E32: =OFFSET(config!P7, calc!D15, 0) -> 0.01956308004 | G32: 22 | H32: 0.5029658045 | I32: 0.06857142857 | J32: 0.05090161906 | K32: 0.05307833631 | M32: 0.4898078854 | N32: 0.08 | O32: 0.05387143966 | P32: 0.05387143966
B33: Maximum value | C33: x-max | D33: =OFFSET(config!Q7, calc!D9, 0) -> 0.8953579774 | E33: =OFFSET(config!Q7, calc!D15, 0) -> 0.8953579774 | G33: 23 | H33: 0.5233532549 | I33: 0.06285714286 | J33: 0.04905142794 | K33: 0.05032345261 | M33: 0.5100084686 | N33: 0.05142857143 | O33: 0.05174641509 | P33: 0.05174641509
B34: Number of bins | C34: bin-count | D34: 40 | E34: =D34 -> 40 | G34: 24 | H34: 0.5437407053 | I34: 0 | J34: 0.0464683594 | K34: 0.04678979373 | M34: 0.5302090518 | N34: 0.07428571429 | O34: 0.048762294 | P34: 0.048762294
G35: 25 | H35: 0.5641281557 | I35: 0.05142857143 | J35: 0.0432761534 | K35: 0.04266378724 | M35: 0.550409635 | N35: 0.05714285714 | O35: 0.04507857342 | P35: 0.04507857342
G36: 26 | H36: 0.5845156061 | I36: 0.04 | J36: 0.03962101438 | K36: 0.03815006237 | M36: 0.5706102183 | N36: 0.02285714286 | O36: 0.04088258733 | P36: 0.04088258733
G37: 27 | H37: 0.6049030565 | I37: 0.05714285714 | J37: 0.03566055974 | K37: 0.0334548181 | M37: 0.5908108015 | N37: 0.02285714286 | O37: 0.03637380692 | P37: 0.03637380692
G38: 28 | H38: 0.6252905069 | I38: 0.04 | J38: 0.03155268691 | K38: 0.02877064953 | M38: 0.6110113847 | N38: 0.03428571429 | O38: 0.03174836141 | P38: 0.03174836141
G39: 29 | H39: 0.6456779572 | I39: 0.03428571429 | J39: 0.02744543807 | K39: 0.02426432608 | M39: 0.6312119679 | N39: 0.01714285714 | O39: 0.02718542009 | P39: 0.02718542009
G40: 30 | H40: 0.6660654076 | I40: 0.04 | J40: 0.02346873133 | K40: 0.02006847509 | M40: 0.6514125511 | N40: 0.005714285714 | O40: 0.02283667944 | P40: 0.02283667944
G41: 31 | H41: 0.686452858 | I41: 0.01142857143 | J41: 0.01972852815 | K41: 0.01627751436 | M41: 0.6716131343 | N41: 0.02857142857 | O41: 0.01881967146 | P41: 0.01881967146
G42: 32 | H42: 0.7068403084 | I42: 0.01142857143 | J42: 0.01630367035 | K42: 0.01294760298 | M42: 0.6918137176 | N42: 0 | O42: 0.01521504684 | P42: 0.01521504684
G43: 33 | H43: 0.7272277588 | I43: 0 | J43: 0.01324529734 | K43: 0.01009992697 | M43: 0.7120143008 | N43: 0.02285714286 | O43: 0.0120674838 | P43: 0.0120674838
G44: 34 | H44: 0.7476152092 | I44: 0.01142857143 | J44: 0.01057848964 | K44: 0.007726355142 | M44: 0.732214884 | N44: 0.02285714286 | O44: 0.009389497045 | P44: 0.009389497045
G45: 35 | H45: 0.7680026595 | I45: 0 | J45: 0.00830560447 | K45: 0.005796404339 | M45: 0.7524154672 | N45: 0 | O45: 0.007167209665 | P45: 0.007167209665
G46: 36 | H46: 0.7883901099 | I46: 0 | J46: 0.006410685214 | K46: 0.00426452095 | M46: 0.7726160504 | N46: 0 | O46: 0.005367104648 | P46: 0.005367104648
G47: 37 | H47: 0.8087775603 | I47: 0 | J47: 0.004864332864 | K47: 0.003076871824 | M47: 0.7928166336 | N47: 0.005714285714 | O47: 0.003942867581 | P47: 0.003942867581
G48: 38 | H48: 0.8291650107 | I48: 0.01142857143 | J48: 0.003628505171 | K48: 0.002177088735 | M48: 0.8130172169 | N48: 0 | O48: 0.002841623232 | P48: 0.002841623232
G49: 39 | H49: 0.8495524611 | I49: 0.005714285714 | J49: 0.002660834321 | K49: 0.00151067287 | M49: 0.8332178001 | N49: 0 | O49: 0.002009106562 | P49: 0.002009106562
G50: 40 | H50: 0.8699399115 | I50: 0.01142857143 | J50: 0.0009590992518 | K50: 0.0005139990381 | M50: 0.8534183833 | N50: 0.005714285714 | O50: 0.0006967735053 | P50: 0.0006967735053

Sheet data
B2: TAB: GENERATED AND HISTORICAL SAMPLES AND DISTRIBUTIONS
C4: Mean | D4: =AVERAGE(D9:D500) -> 0.4689441919 | E4: =SUMPRODUCT(E9:E502, F9:F502, G9:G502) -> 0.4675256992 | L4: =AVERAGE(L9:L500) -> 0.4574605287 | M4: =SUMPRODUCT(M9:M502, N9:N502, O9:O502) -> 0.4648700158
C5: Stdev | D5: =STDEV(D9:D500) -> 0.1560335007 | E5: =SQRT(SUMPRODUCT(E9:E502, E9:E502, F9:F502, G9:G502) - E4*E4) -> 0.1378120771 | L5: =STDEV(L9:L500) -> 0.1459658162 | M5: =SQRT(SUMPRODUCT(M9:M502, M9:M502, N9:N502, O9:O502) - M4*M4) -> 0.1398713547
C6: Mode | E6: =OFFSET(E8, F6, 0) -> 0.4576392364 | F6: =MATCH(MAX(G9:G500), G9:G500, 0) -> 82 | H6: Generated | M6: =OFFSET(M8, N6, 0) -> 0.4574966956 | N6: =MATCH(MAX(O9:O500), O9:O500, 0) -> 81 | P6: Historical
C7: Generated sample | F7: =calc!D23 -> 175 | H7: u*=F*(β) | J7: Historical sample | P7: u=F(x)
B8: # | C8: cdf - uniform | D8: sample | E8: sorted sample | F8: sample increment | G8: =test!K10 -> pdf - Normal | H8: ="cdf - " & calc!$D$10 -> cdf - Normal | J8: # | K8: Date | L8: Value | M8: sorted sample | N8: sample increment | O8: =test!P10 -> Normal distribution | P8: ="cdf - " & calc!$D$16 -> cdf - Normal
B9: 1 | C9: =1/calc!D23 -> 0.005714285714 | D9: =_xll.AC.data._get(calc!D26, "", 0) -> 0.378875149 | E9: =_xll.AC.data._get(calc!D27, "", 0) -> 0.06966955966 | F9: =IF($B10="", "", E10-E9) -> 0.06328948485 | G9: =_xll.AC.data._get(calc!D28, "", 0) -> 0.08016659195 | H9: =_xll.AC.data._get(calc!D29, "", 0) -> 0.003945194042 | J9: 1 | K9: AARON | L9: 0.1816898276 | M9: =_xll.AC.data._get(calc!D32, "", 0) -> 0.06048314456 | N9: =IF($B10="", "", M10-M9) -> 0.006105604109 | O9: =_xll.AC.data._get(calc!D33, "", 0) -> 0.06768905175 | P9: =_xll.AC.data._get(calc!D34, "", 0) -> 0.003267454075
B10: =IF(B9="", "", IF(B9<$F$7, B9+1, "")) -> 2 | C10: =IF(B10="", "", C9+$C$9) -> 0.01142857143 | D10: 0.3459882716 | E10: 0.1329590445 | F10: =IF($B11="", "", E11-E10) -> 0.00910319142 | G10: 0.2309124108 | H10: 0.01310340236 | J10: =IF(K10="", "", J9+1) -> 2 | K10: ACADI | L10: 0.4117926199 | M10: 0.06658874867 | N10: =IF($B11="", "", M11-M10) -> 0.02558880117 | O10: 0.07577817124 | P10: 0.003705030381
B11: 3 | C11: 0.01714285714 | D11: 0.2892046886 | E11: 0.1420622359 | F11: 0.0002985213418 | G11: 0.2647378197 | H11: 0.01535662515 | J11: =IF(K11="", "", J10+1) -> 3 | K11: AGELL | L11: 0.5179175539 | M11: 0.09217754984 | N11: 0.009920885743 | O11: 0.1193291961 | P11: 0.006165560773
B12: 4 | C12: 0.02285714286 | D12: 0.4720386695 | E12: 0.1423607573 | F12: 0.01286167792 | G12: 0.2659097514 | H12: 0.01543582986 | J12: 4 | K12: AGREE | L12: 0.3636525033 | M12: 0.1020984356 | N12: 0.0009680720371 | O12: 0.1411277885 | P12: 0.007455016576
B13: 5 | C13: 0.02857142857 | D13: 0.2551829276 | E13: 0.1552224352 | F13: 0.006186640302 | G13: 0.3203740781 | H13: 0.01919768778 | J13: 5 | K13: ALEXA | L13: 0.280203804 | M13: 0.1030665076 | N13: 0.04285417546 | O13: 0.1434218398 | P13: 0.007592746366
B14: 6 | C14: 0.03428571429 | D14: 0.4820545298 | E14: 0.1614090755 | F14: 0.01443821395 | G14: 0.3494470805 | H14: 0.02126866724 | J14: 6 | K14: ALEXA02 | L14: 0.7323676237 | M14: 0.1459206831 | N14: 0.006703291823 | O14: 0.2802012657 | P14: 0.01640771344
B15: 7 | C15: 0.04 | D15: 0.06966955966 | E15: 0.1758472894 | F15: 0.01837449273 | G15: 0.4249969312 | H15: 0.02684622412 | J15: 7 | K15: ALEXA03 | L15: 0.4174327487 | M15: 0.1526239749 | N15: 0.02906585266 | O15: 0.3087309564 | P15: 0.0183804073
B16: 8 | C16: 0.04571428571 | D16: 0.2789903175 | E16: 0.1942217822 | F16: 0.01813555715 | G16: 0.5375514333 | H16: 0.03566056201 | J16: 8 | K16: ALGOM | L16: 0.2439498863 | M16: 0.1816898276 | N16: 0.005036842637 | O16: 0.4587497613 | P16: 0.02942697471
B17: 9 | C17: 0.05142857143 | D17: 0.5564643958 | E17: 0.2123573393 | F17: 0.001160965861 | G17: 0.6673891187 | H17: 0.04655827732 | J17: 9 | K17: ALGOM02 | L17: 0.2525702072 | M17: 0.1867266702 | N17: 0.000949717386 | O17: 0.4893622417 | P17: 0.03181412706
B18: 10 | C18: 0.05714285714 | D18: 0.5647804101 | E18: 0.2135183052 | F18: 0.002580045187 | G18: 0.676340951 | H18: 0.04733828226 | J18: 10 | K18: ALLEG | L18: 0.06658874867 | M18: 0.1876763876 | N18: 0.02242642956 | O18: 0.4952931505 | P18: 0.03228169523
B19: 11 | C19: 0.06285714286 | D19: 0.515574758 | E19: 0.2160983504 | F19: 0.01873568671 | G19: 0.6965093379 | H19: 0.04910920885 | J19: 11 | K19: ALLIE | L19: 0.3804304228 | M19: 0.2101028171 | N19: 0.005416725328 | O19: 0.6502247613 | P19: 0.04507303696
B20: 12 | C20: 0.06857142857 | D20: 0.5591172912 | E20: 0.2348340371 | F20: 0.002257554913 | G20: 0.8541339359 | H20: 0.06360509824 | J20: 12 | K20: AMERC | L20: 0.330249911 | M20: 0.2155195425 | N20: 0.004729387779 | O20: 0.6919518664 | P20: 0.04870738361
B21: 13 | C21: 0.07428571429 | D21: 0.6161040184 | E21: 0.237091592 | F21: 0.005302511528 | G21: 0.8744171862 | H21: 0.06555619712 | J21: 13 | K21: AMERI | L21: 0.5554599611 | M21: 0.2202489303 | N21: 0.01529063239 | O21: 0.7297457346 | P21: 0.05206876519
B22: 14 | C22: 0.08 | D22: 0.6943678255 | E22: 0.2423941035 | F22: 0.001839988444 | G22: 0.9231039345 | H22: 0.07032124368 | J22: 14 | K22: AMERI02 | L22: 0.5195216508 | M22: 0.2355395626 | N22: 0.001942827609 | O22: 0.8604438551 | P22: 0.06420993591
B23: 15 | C23: 0.08571428571 | D23: 0.5126633311 | E23: 0.244234092 | F23: 0.0001047209597 | G23: 0.9403343703 | H23: 0.07203557 | J23: 15 | K23: AMERI03 | L23: 0.7217313708 | M23: 0.2374823902 | N23: 0.006467496039 | O23: 0.877955622 | P23: 0.06589860897
B24: 16 | C24: 0.09142857143 | D24: 0.1614090755 | E24: 0.2443388129 | F24: 0.01043118693 | G24: 0.9413201402 | H24: 0.07213409433 | J24: 16 | K24: AMERI04 | L24: 0.6405986668 | M24: 0.2439498863 | N24: 0.008620320922 | O24: 0.937661824 | P24: 0.0717687015
B25: 17 | C25: 0.09714285714 | D25: 0.3265786155 | E25: 0.2547699999 | F25: 0.0004129277862 | G25: 1.042181913 | H25: 0.08247471112 | J25: 17 | K25: ARMAD | L25: 0.5490828653 | M25: 0.2525702072 | N25: 0.002724178161 | O25: 1.02048261 | P25: 0.08020603475
B26: 18 | C26: 0.1028571429 | D26: 0.4579792248 | E26: 0.2551829276 | F26: 0.01330079005 | G26: 1.046279787 | H26: 0.08290590279 | J26: 18 | K26: ARTIS | L26: 0.4933240867 | M26: 0.2552943854 | N26: 0.01979052048 | O26: 1.04738721 | P26: 0.08302258046
B27: 19 | C27: 0.1085714286 | D27: 0.5740120404 | E27: 0.2684837177 | F27: 0.00427274725 | G27: 1.182186577 | H27: 0.09771793593 | J27: 19 | K27: BOSTO | L27: 0.5265546984 | M27: 0.2750849058 | N27: 0.005118898139 | O27: 1.252189138 | P27: 0.1057519759
B28: 20 | C28: 0.1142857143 | D28: 0.5978579609 | E28: 0.2727564649 | F28: 0.006233852596 | G28: 1.227322626 | H28: 0.1028653132 | J28: 20 | K28: BRAEM | L28: 0.6117244595 | M28: 0.280203804 | N28: 0.001283028397 | O28: 1.307471654 | P28: 0.11230295
B29: 21 | C29: 0.12 | D29: 0.3478981442 | E29: 0.2789903175 | F29: 0.01021437104 | G29: 1.294293525 | H29: 0.110724351 | J29: 21 | K29: BRAND | L29: 0.5107134776 | M29: 0.2814868324 | N29: 0.008680005354 | O29: 1.321451612 | P29: 0.1139894365
B30: 22 | C30: 0.1257142857 | D30: 0.330938798 | E30: 0.2892046886 | F30: 0.01412147675 | G30: 1.406462096 | H30: 0.1245153027 | J30: 22 | K30: BRESE | L30: 0.7336796344 | M30: 0.2901668377 | N30: 0.01329869466 | O30: 1.417158578 | P30: 0.1258736732
B31: 23 | C31: 0.1314285714 | D31: 0.3881270893 | E31: 0.3033261653 | F31: 0.00470563672 | G31: 1.565047782 | H31: 0.1454927753 | J31: 23 | K31: BRIXM | L31: 0.6173978705 | M31: 0.3034655324 | N31: 0.002822615997 | O31: 1.566625783 | P31: 0.1457110014
B32: 24 | C32: 0.1371428571 | D32: 0.4363728265 | E32: 0.3080318021 | F32: 0.003514811657 | G32: 1.618401204 | H32: 0.1529827999 | J32: 24 | K32: BROOK02 | L32: 0.4304622864 | M32: 0.3062881484 | N32: 0.007839095832 | O32: 1.598616187 | P32: 0.1501781198
B33: 25 | C33: 0.1428571429 | D33: 0.5017968491 | E33: 0.3115466137 | F33: 0.0007701394531 | G33: 1.658311299 | H33: 0.158741307 | J33: 25 | K33: BROOK03 | L33: 0.7214781898 | M33: 0.3141272442 | N33: 0.005083309975 | O33: 1.687616053 | P33: 0.1630586102
B34: 26 | C34: 0.1485714286 | D34: 0.5313632813 | E34: 0.3123167532 | F34: 0.01191165029 | G34: 1.667057611 | H34: 0.1600218059 | J34: 26 | K34: BTBRE | L34: 0.6741556148 | M34: 0.3192105542 | N34: 0.005474034507 | O34: 1.745267384 | P34: 0.1717838769
B35: 27 | C35: 0.1542857143 | D35: 0.2423941035 | E35: 0.3242284035 | F35: 0.00131729549 | G35: 1.801962924 | H35: 0.1806837289 | J35: 27 | K35: CANAD | L35: 0.379194237 | M35: 0.3246845887 | N35: 0.003536339353 | O35: 1.8071018 | P35: 0.1815069301
B36: 28 | C36: 0.16 | D36: 0.3368987005 | E36: 0.3255456989 | F36: 0.001032916533 | G36: 1.816793721 | H36: 0.1830672177 | J36: 28 | K36: CAPIT | L36: 0.5742406604 | M36: 0.3282209281 | N36: 0.0005896188649 | O36: 1.846826588 | P36: 0.1879677569
B37: 29 | C37: 0.1657142857 | D37: 0.6307688943 | E37: 0.3265786155 | F37: 0.001385495835 | G37: 1.828403996 | H37: 0.1849498117 | J37: 29 | K37: CARET | L37: 0.5464679479 | M37: 0.3288105469 | N37: 0.0003128896076 | O37: 1.853428566 | P37: 0.1890586274
B38: 30 | C38: 0.1714285714 | D38: 0.2160983504 | E38: 0.3279641113 | F38: 0.0009382344172 | G38: 1.843948955 | H38: 0.1874938304 | J38: 30 | K38: CBLAS | L38: 0.7246295869 | M38: 0.3291234365 | N38: 0.00112647444 | O38: 1.856929273 | P38: 0.1896390936
B39: 31 | C39: 0.1771428571 | D39: 0.436006297 | E39: 0.3289023457 | F39: 0.00203645223 | G39: 1.854455839 | H39: 0.1892288171 | J39: 31 | K39: CBREG | L39: 0.3367209661 | M39: 0.330249911 | N39: 3.987987109e-05 | O39: 1.869516329 | P39: 0.1917379689
B40: 32 | C40: 0.1828571429 | D40: 0.8660533037 | E40: 0.330938798 | F40: 0.00479509154 | G40: 1.877200761 | H40: 0.1930285018 | J40: 32 | K40: CEDAR | L40: 0.5093067066 | M40: 0.3302897908 | N40: 0.003393180416 | O40: 1.86996146 | P40: 0.1918125339
B41: 33 | C41: 0.1885714286 | D41: 0.4950447831 | E41: 0.3357338895 | F41: 0.001164811012 | G41: 1.930379971 | H41: 0.2021575783 | J41: 33 | K41: CHATH | L41: 0.4343301798 | M41: 0.3336829713 | N41: 0.003037994862 | O41: 1.907704598 | P41: 0.1982217605
B42: =IF(B41="", "", IF(B41<$F$7, B41+1, "")) -> 34 | C42: =IF(B42="", "", C41+$C$9) -> 0.1942857143 | D42: 0.6209658189 | E42: 0.3368987005 | F42: 0.002997853044 | G42: 1.943207342 | H42: 0.2044135806 | J42: 34 | K42: CHESA | L42: 0.3653444483 | M42: 0.3367209661 | N42: 0.003328444623 | O42: 1.941252554 | P42: 0.2040683795
B43: 35 | C43: 0.2 | D43: 0.2547699999 | E43: 0.3398965536 | F43: 0.001772767504 | G43: 1.976035499 | H43: 0.2102883067 | J43: 35 | K43: CHINA | L43: 0.2155195425 | M43: 0.3400494107 | N43: 0 | O43: 1.977701799 | P43: 0.2105904853
B44: 36 | C44: 0.2057142857 | D44: 0.7503912774 | E44: 0.3416693211 | F44: 0.003477137886 | G44: 1.995312589 | H44: 0.2138084607 | J44: 36 | K44: CHOIC | L44: 0.8585308766 | M44: 0.3400494107 | N44: 0.0009186788867 | O44: 1.977701799 | P44: 0.2105904853
B45: 37 | C45: 0.2114285714 | D45: 0.5000238964 | E45: 0.3451464589 | F45: 0.0008418126685 | G45: 2.032799873 | H45: 0.220811741 | J45: 37 | K45: CIMCO | L45: 0.3800783541 | M45: 0.3409680896 | N45: 0.003044937263 | O45: 1.987700061 | P45: 0.2124119529
B46: 38 | C46: 0.2171428571 | D46: 0.3289023457 | E46: 0.3459882716 | F46: 0.001909872542 | G46: 2.041806697 | H46: 0.2225267706 | J46: 38 | K46: CINEP | L46: 0.2374823902 | M46: 0.3440130269 | N46: 0.009579948514 | O46: 2.020629483 | P46: 0.2185145929
B47: 39 | C47: 0.2228571429 | D47: 0.3540741701 | E47: 0.3478981442 | F47: 0.002307756713 | G47: 2.062134949 | H47: 0.2264457972 | J47: 39 | K47: CITYO | L47: 0.6147364971 | M47: 0.3535929754 | N47: 0.002714378066 | O47: 2.121801303 | P47: 0.2383599062
B48: 40 | C48: 0.2285714286 | D48: 0.3804212217 | E48: 0.3502059009 | F48: 0.0005175254046 | G48: 2.086491761 | H48: 0.2312328525 | J48: 40 | K48: COLER | L48: 0.4775884986 | M48: 0.3563073535 | N48: 0.007345149808 | O48: 2.149693293 | P48: 0.2441572165
B49: 41 | C49: 0.2342857143 | D49: 0.3507234263 | E49: 0.3507234263 | F49: 0.003350743846 | G49: 2.091921482 | H49: 0.2323140705 | J49: 41 | K49: COLON | L49: 0.4160485731 | M49: 0.3636525033 | N49: 0.001691944994 | O49: 2.223163441 | P49: 0.260218738
B50: 42 | C50: 0.24 | D50: 0.5123841462 | E50: 0.3540741701 | F50: 0.003123876047 | G50: 2.126772996 | H50: 0.2393821024 | J50: 42 | K50: COLUM | L50: 0.3757296082 | M50: 0.3653444483 | N50: 0.004873332795 | O50: 2.23963615 | P50: 0.2639941689
B51: 43 | C51: 0.2457142857 | D51: 0.6634748713 | E51: 0.3571980462 | F51: 0.004913194037 | G51: 2.158762719 | H51: 0.2460759747 | J51: 43 | K51: COMIN | L51: 0.5439618716 | M51: 0.3702177811 | N51: 0.005511827125 | O51: 2.286050878 | P51: 0.2750223961
B52: 44 | C52: 0.2514285714 | D52: 0.5021909872 | E52: 0.3621112402 | F52: 0.000555775424 | G52: 2.208005013 | H52: 0.2568039215 | J52: 44 | K52: COREC | L52: 0.4270763614 | M52: 0.3757296082 | N52: 0.003464628831 | O52: 2.336566178 | P52: 0.2877629358
B53: 45 | C53: 0.2571428571 | D53: 0.5697659054 | E53: 0.3626670156 | F53: 0.006294043159 | G53: 2.2134876 | H53: 0.2580326008 | J53: 45 | K53: COREN | L53: 0.2750849058 | M53: 0.379194237 | N53: 0.0008841170585 | O53: 2.367160637 | P53: 0.2959115372
B54: 46 | C54: 0.2628571429 | D54: 0.6169497392 | E54: 0.3689610588 | F54: 0.002280291464 | G54: 2.274232877 | H54: 0.2721568797 | J54: 46 | K54: CORES | L54: 0.4122879432 | M54: 0.3800783541 | N54: 0.0003520687049 | O54: 2.374817511 | P54: 0.2980077737
B55: 47 | C55: 0.2685714286 | D55: 0.5030191916 | E55: 0.3712413502 | F55: 0.005908071989 | G55: 2.295595968 | H55: 0.2773672186 | J55: 47 | K55: CORPO | L55: 0.5223942842 | M55: 0.3804304228 | N55: 0.002055472598 | O55: 2.377849197 | P55: 0.2988444066
B56: 48 | C56: 0.2742857143 | D56: 0.4331922603 | E56: 0.3771494222 | F56: 0.001725726744 | G56: 2.349215809 | H56: 0.2910894235 | J56: 48 | K56: COUSI | L56: 0.2901668377 | M56: 0.3824858954 | N56: 0.001039259393 | O56: 2.395348227 | P56: 0.303750054
B57: 49 | C57: 0.28 | D57: 0.4225113758 | E57: 0.378875149 | F57: 0.0009129362482 | G57: 2.364381948 | H57: 0.2951566477 | J57: 49 | K57: CROMB | L57: 0.611848491 | M57: 0.3835251548 | N57: 0.0001836922782 | O57: 2.40406334 | P57: 0.3062439785
B58: 50 | C58: 0.2857142857 | D58: 0.5959244351 | E58: 0.3797880852 | F58: 0.0006331364448 | G58: 2.372310514 | H58: 0.2973188018 | J58: 50 | K58: CROSS | L58: 0.5281130702 | M58: 0.3837088471 | N58: 0.009539233768 | O58: 2.405594375 | P58: 0.3066857271
B59: 51 | C59: 0.2914285714 | D59: 0.5544117968 | E59: 0.3804212217 | F59: 0.0003555703384 | G59: 2.377770093 | H59: 0.2988225281 | J59: 51 | K59: CROWN | L59: 0.5400729104 | M59: 0.3932480808 | N59: 0.00127374964 | O59: 2.481050346 | P59: 0.3299995941
B60: 52 | C60: 0.2971428571 | D60: 0.3909800576 | E60: 0.380776792 | F60: 0.0001268438805 | G60: 2.380822065 | H60: 0.2996685355 | J60: 52 | K60: CSWIN | L60: 0.1526239749 | M60: 0.3945218305 | N60: 0.003511498389 | O60: 2.490498201 | P60: 0.3331658645
B61: 53 | C61: 0.3028571429 | D61: 0.3502059009 | E61: 0.3809036359 | F61: 0.0007860241193 | G61: 2.381908333 | H61: 0.2999705971 | J61: 53 | K61: CYRUS | L61: 0.4899304608 | M61: 0.3980333289 | N61: 0.00480914537 | O61: 2.51573872 | P61: 0.3419559103
B62: 54 | C62: 0.3085714286 | D62: 0.4499468707 | E62: 0.38168966 | F62: 0.001091336391 | G62: 2.388610542 | H62: 0.3018454719 | J62: 54 | K62: DCTIN | L62: 0.4276134527 | M62: 0.4028424742 | N62: 0.008950145643 | O62: 2.548328111 | P62: 0.3541337606
B63: 55 | C63: 0.3142857143 | D63: 0.3771494222 | E63: 0.3827809964 | F63: 0.0006725413488 | G63: 2.397832051 | H63: 0.3044572903 | J63: 55 | K63: DIAMO | L63: 0.3291234365 | M63: 0.4117926199 | N63: 0.0004953233688 | O63: 2.602575054 | P63: 0.3771907982
B64: 56 | C64: 0.32 | D64: 0.8750996983 | E64: 0.3834535378 | F64: 0.004673551564 | G64: 2.403465661 | H64: 0.3060718281 | J64: 56 | K64: DIGIT | L64: 0.47290906 | M64: 0.4122879432 | N64: 0.003405930415 | O64: 2.605324648 | P64: 0.3784805965
B65: 57 | C65: 0.3257142857 | D65: 0.5856658522 | E65: 0.3881270893 | F65: 0.00285296825 | G65: 2.441549403 | H65: 0.317394276 | J65: 57 | K65: DOUGL | L65: 0.5558754414 | M65: 0.4156938737 | N65: 0.0003546994355 | O65: 2.623491972 | P65: 0.3873854575
B66: 58 | C66: 0.3314285714 | D66: 0.1552224352 | E66: 0.3909800576 | F66: 0.001100994544 | G66: 2.463851742 | H66: 0.3243919274 | J66: 58 | K66: DREAM | L66: 0.4984809047 | M66: 0.4160485731 | N66: 0.001384175583 | O66: 2.625309035 | P66: 0.3883163313
B67: 59 | C67: 0.3371428571 | D67: 0.3451464589 | E67: 0.3920810521 | F67: 0.003240794599 | G67: 2.472260277 | H67: 0.3271092539 | J67: 59 | K67: DREAM02 | L67: 0.4465732382 | M67: 0.4174327487 | N67: 0.003240633214 | O67: 2.632263284 | P67: 0.391955058
B68: 60 | C68: 0.3428571429 | D68: 0.3953218467 | E68: 0.3953218467 | F68: 0.003134656159 | G68: 2.496353398 | H68: 0.3351606497 | J68: 60 | K68: DUKER | L68: 0.4750853661 | M68: 0.4206733819 | N68: 0.005716136022 | O68: 2.647685317 | P68: 0.4005105735
B69: 61 | C69: 0.3485714286 | D69: 0.596220158 | E69: 0.3984565029 | F69: 0.0002699884817 | G69: 2.51869928 | H69: 0.3430211326 | J69: 61 | K69: EASTG | L69: 0.5967157626 | M69: 0.4263895179 | N69: 0.0006868435402 | O69: 2.671896545 | P69: 0.4157161384
B70: 62 | C70: 0.3542857143 | D70: 0.4760916475 | E70: 0.3987264913 | F70: 0.004380242383 | G70: 2.520578891 | H70: 0.3437014063 | J70: 62 | K70: EMPIR | L70: 0.4588931518 | M70: 0.4270763614 | N70: 0.0005370912968 | O70: 2.674544549 | P70: 0.4175522259
B71: 63 | C71: 0.36 | D71: 0.2684837177 | E71: 0.4031067337 | F71: 0.004582577381 | G71: 2.550050831 | H71: 0.3548074083 | J71: 63 | K71: EPRPR | L71: 0.4772194796 | M71: 0.4276134527 | N71: 0.002848833699 | O71: 2.676575748 | P71: 0.4189892475
B72: 64 | C72: 0.3657142857 | D72: 0.4294079516 | E72: 0.4076893111 | F72: 3.764157797e-06 | G72: 2.578766255 | H72: 0.3665598513 | J72: 64 | K72: EQUIN | L72: 0.5652301189 | M72: 0.4304622864 | N72: 0.00126710923 | O72: 2.686767164 | P72: 0.4266291169
B73: 65 | C73: 0.3714285714 | D73: 0.4669562339 | E73: 0.4076930753 | F73: 0.0005618893897 | G73: 2.57878893 | H73: 0.3665695583 | J73: 65 | K73: EQUIT | L73: 0.3246845887 | M73: 0.4317293957 | N73: 0.002600784095 | O73: 2.690983206 | P73: 0.4300362361
B74: =IF(B73="", "", IF(B73<$F$7, B73+1, "")) -> 66 | C74: =IF(B74="", "", C73+$C$9) -> 0.3771428571 | D74: 0.4606945389 | E74: 0.4082549647 | F74: =IF($B75="", "", E75-E74) -> 0.009170203095 | G74: 2.582156639 | H74: 0.3680195001 | J74: 66 | K74: FEDER | L74: 0.5302901177 | M74: 0.4343301798 | N74: =IF($B75="", "", M75-M74) -> 0.005704251163 | O74: 2.699020268 | P74: 0.437045534
B75: 67 | C75: 0.3828571429 | D75: 0.4943383138 | E75: 0.4174251678 | F75: 0.003814325895 | G75: 2.632225791 | H75: 0.3919351032 | J75: =IF(K75="", "", J74+1) -> 67 | K75: FIRST | L75: 0.4542235441 | M75: 0.4400344309 | N75: 0.002297242871 | O75: 2.713713313 | P75: 0.4524852569
B76: 68 | C76: 0.3885714286 | D76: 0.3712413502 | E76: 0.4212394937 | F76: 0.001271882145 | G76: 2.650254639 | H76: 0.4020101883 | J76: 68 | K76: FIRST02 | L76: 0.4939268469 | M76: 0.4423316738 | N76: 0.0004681533699 | O76: 2.718480221 | P76: 0.458724918
B77: 69 | C77: 0.3942857143 | D77: 0.2348340371 | E77: 0.4225113758 | F77: 0.001700073438 | G77: 2.655890517 | H77: 0.4053846041 | J77: 69 | K77: FORES | L77: 0.2814868324 | M77: 0.4427998272 | N77: 0.0002685885412 | O77: 2.719370072 | P77: 0.459997793
B78: 70 | C78: 0.4 | D78: 0.5177600594 | E78: 0.4242114492 | F78: 0.001858437135 | G78: 2.663126702 | H78: 0.4099060123 | J78: 70 | K78: FORTI | L78: 0.4515424671 | M78: 0.4430684157 | N78: 0.001413473733 | O78: 2.719868097 | P78: 0.4607282518
B79: 71 | C79: 0.4057142857 | D79: 0.1758472894 | E79: 0.4260698864 | F79: 0.002377290959 | G79: 2.670644993 | H79: 0.4148623157 | J79: 71 | K79: FRANK | L79: 0.4820740815 | M79: 0.4444818894 | N79: 4.178497279e-05 | O79: 2.722338611 | P79: 0.4645744897
B80: 72 | C80: 0.4114285714 | D80: 0.4260698864 | E80: 0.4284471773 | F80: 0.0009607742406 | G80: 2.679659953 | H80: 0.421222066 | J80: 72 | K80: FRPHO | L80: 0.2101028171 | M80: 0.4445236744 | N80: 0.002049563811 | O80: 2.722407793 | P80: 0.464688244
B81: 73 | C81: 0.4171428571 | D81: 0.4439579339 | E81: 0.4294079516 | F81: 0.001136652778 | G81: 2.683110001 | H81: 0.4237982806 | J81: 73 | K81: GAMEH | L81: 0.1876763876 | M81: 0.4465732382 | N81: 0.004969228827 | O81: 2.725529186 | P81: 0.4702712823
B82: 74 | C82: 0.4228571429 | D82: 0.6708931505 | E82: 0.4305446043 | F82: 0.002647655961 | G82: 2.687047009 | H82: 0.4268502974 | J82: 74 | K82: GENER | L82: 0.4825415604 | M82: 0.4515424671 | N82: 0.0001548474606 | O82: 2.730875824 | P82: 0.48382965
B83: 75 | C83: 0.4285714286 | D83: 0.3571980462 | E83: 0.4331922603 | F83: 0.002814036644 | G83: 2.695606168 | H83: 0.4339761937 | J83: 75 | K83: GEOGR | L83: 0.595451065 | M83: 0.4516973145 | N83: 0.002526229546 | O83: 2.730991748 | P83: 0.4842525282
B84: 76 | C84: 0.4342857143 | D84: 0.6296327364 | E84: 0.436006297 | F84: 0.000233539789 | G84: 2.703757709 | H84: 0.4415734271 | J84: 76 | K84: GETTY | L84: 0.3034655324 | M84: 0.4542235441 | N84: 0.001239584996 | O84: 2.732449316 | P84: 0.4911536534
B85: 77 | C85: 0.44 | D85: 0.2123573393 | E85: 0.4362398367 | F85: 0.0001329897632 | G85: 2.704390149 | H85: 0.4422049361 | J85: 77 | K85: GGPIN | L85: 0.5956711915 | M85: 0.4554631291 | N85: 0.0006850094156 | O85: 2.732865413 | P85: 0.4945410348
B86: 78 | C86: 0.4457142857 | D86: 0.6019752179 | E86: 0.4363728265 | F86: 0.007585107348 | G86: 2.704747266 | H86: 0.4425646161 | J86: 78 | K86: GLADS | L86: 0.6471892698 | M86: 0.4561481385 | N86: 0.000506282513 | O86: 2.733010823 | P86: 0.4964131266
B87: 79 | C87: 0.4514285714 | D87: 0.4212394937 | E87: 0.4439579339 | F87: 0.00268974711 | G87: 2.721452329 | H87: 0.4631483358 | J87: 79 | K87: GOVER | L87: 0.5243276237 | M87: 0.456654421 | N87: 0.0004599303242 | O87: 2.733079615 | P87: 0.497796821
B88: 80 | C88: 0.4571428571 | D88: 0.446647681 | E88: 0.446647681 | F88: 0.003299189693 | G88: 2.725632513 | H88: 0.470474182 | J88: 80 | K88: GRAME | L88: 0.4263895179 | M88: 0.4571143513 | N88: 0.0003823442659 | O88: 2.733113607 | P88: 0.499053856
B89: 81 | C89: 0.4628571429 | D89: 0.5931616091 | E89: 0.4499468707 | F89: 0.007692365744 | G89: 2.729502683 | H89: 0.4794733265 | J89: 81 | K89: GRANI | L89: 0.2202489303 | M89: 0.4574966956 | N89: 9.084086734e-05 | O89: 2.733121209 | P89: 0.5000988484
B90: 82 | C90: 0.4685714286 | D90: 0.576345599 | E90: 0.4576392364 | F90: 0.0003399884367 | G90: 2.733119245 | H90: 0.5004884296 | J90: 82 | K90: GRIFF | L90: 0.4427998272 | M90: 0.4575875364 | N90: 0.0004122296625 | O90: 2.733120258 | P90: 0.5003471274
B91: 83 | C91: 0.4742857143 | D91: 0.1423607573 | E91: 0.4579792248 | F91: 0.002715314018 | G91: 2.733104037 | H91: 0.5014176564 | J91: 83 | K91: HRREA | L91: 0.458053701 | M91: 0.4579997661 | N91: 5.393487547e-05 | O91: 2.733102643 | P91: 0.5014737978
B92: 84 | C92: 0.48 | D92: 0.5982927533 | E92: 0.4606945389 | F92: 0.00317275166 | G92: 2.73245055 | H92: 0.5088382188 | J92: 84 | K92: HCIGR | L92: 0.2355395626 | M92: 0.458053701 | N92: 0.0008394508414 | O92: 2.733098725 | P92: 0.5016212072
B93: 85 | C93: 0.4857142857 | D93: 0.3279641113 | E93: 0.4638672905 | F93: 0.00308894335 | G93: 2.730489846 | H93: 0.5175048363 | J93: 85 | K93: HCPIN | L93: 0.497820195 | M93: 0.4588931518 | N93: 0.003475499682 | O93: 2.732989655 | P93: 0.5039154698
B94: 86 | C94: 0.4914285714 | D94: 0.6420218429 | E94: 0.4669562339 | F94: 0.005082435629 | G94: 2.727344037 | H94: 0.5259346198 | J94: 86 | K94: HEALT | L94: 0.4574966956 | M94: 0.4623686515 | N94: 0.001657593818 | O94: 2.731576627 | P94: 0.5134119674
B95: 87 | C95: 0.4971428571 | D95: 0.3115466137 | E95: 0.4720386695 | F95: 0.0004192706698 | G95: 2.719524129 | H95: 0.5397776872 | J95: 87 | K95: HIGHW | L95: 0.4904691111 | M95: 0.4640262453 | N95: 0.0010166383 | O95: 2.730357718 | P95: 0.5179388503
B96: 88 | C96: 0.5028571429 | D96: 0.3987264913 | E96: 0.4724579402 | F96: 0.003633707311 | G96: 2.718732859 | H96: 0.5409177388 | J96: 88 | K96: HOSPI | L96: 0.4976289201 | M96: 0.4650428836 | N96: 0.0002061094538 | O96: 2.729436256 | P96: 0.5207141793
B97: 89 | C97: 0.5085714286 | D97: 0.3689610588 | E97: 0.4760916475 | F97: 0.005635927821 | G97: 2.710947664 | H97: 0.5507831765 | J97: 89 | K97: HOSTH | L97: 0.3400494107 | M97: 0.4652489931 | N97: 0.006634075661 | O97: 2.729233339 | P97: 0.5212767211
B98: 90 | C98: 0.5142857143 | D98: 0.3123167532 | E98: 0.4817275753 | F98: 0.0003269545094 | G98: 2.69560992 | H98: 0.5660205127 | J98: 90 | K98: HOSTH02 | L98: 0.3400494107 | M98: 0.4718830687 | N98: 0.001025991255 | O98: 2.719812137 | P98: 0.5393545048
B99: 91 | C99: 0.52 | D99: 0.3080318021 | E99: 0.4820545298 | F99: 0.003255656629 | G99: 2.69459952 | H99: 0.5669016897 | J99: 91 | K99: HUDSO | L99: 0.3837088471 | M99: 0.47290906 | N99: 0.002176306145 | O99: 2.717856695 | P99: 0.5421440165
B100: 92 | C100: 0.5257142857 | D100: 0.5126365081 | E100: 0.4853101864 | F100: 0.005043735577 | G100: 2.68382436 | H100: 0.5756571916 | J100: 92 | K100: INGLE | L100: 0.5345348774 | M100: 0.4750853661 | N100: 0.002064283918 | O100: 2.713269725 | P100: 0.5480540214
B101: 93 | C101: 0.5314285714 | D101: 0.4960363265 | E101: 0.490353922 | F101: 0.0005493017495 | G101: 2.664597411 | H101: 0.5891464882 | J101: 93 | K101: INOVA | L101: 0.4718830687 | M101: 0.4771496501 | N101: 6.982958665e-05 | O101: 2.70836958 | P101: 0.5536500146
B102: 94 | C102: 0.5371428571 | D102: 0.5549098813 | E102: 0.4909032238 | F102: 0.001200967739 | G102: 2.662319827 | H102: 0.5906095323 | J102: 94 | K102: INTER | L102: 0.5140549656 | M102: 0.4772194796 | N102: 0.0003690189575 | O102: 2.708194504 | P102: 0.5538391328
B103: 95 | C103: 0.5428571429 | D103: 0.5668599902 | E103: 0.4921041915 | F103: 0.002234122298 | G103: 2.65721592 | H103: 0.5938038448 | J103: 95 | K103: IRONM | L103: 0.6738263772 | M103: 0.4775884986 | N103: 0.001989406385 | O103: 2.707259202 | P103: 0.5548383359
B104: 96 | C104: 0.5485714286 | D104: 0.2443388129 | E104: 0.4943383138 | F104: 0.000706469292 | G104: 2.647270485 | H104: 0.5997293892 | J104: 96 | K104: JONES | L104: 0.1459206831 | M104: 0.479577905 | N104: 0.0001327219489 | O104: 2.701924972 | P104: 0.5602189502
B105: 97 | C105: 0.5542857143 | D105: 0.1942217822 | E105: 0.4950447831 | F105: 0.0009915434486 | G105: 2.64400441 | H105: 0.6015984542 | J105: 97 | K105: KBSRE | L105: 0.4575875364 | M105: 0.4797106269 | N105: 0.002363454593 | O105: 2.70155162 | P105: 0.5605775302
B106: =IF(B105="", "", IF(B105<$F$7, B105+1, "")) -> 98 | C106: =IF(B106="", "", C105+$C$9) -> 0.56 | D106: 0.4638672905 | E106: 0.4960363265 | F106: 0.003987569846 | G106: 2.639322921 | H106: 0.6042177879 | J106: 98 | K106: KILRO | L106: 0.3835251548 | M106: 0.4820740815 | N106: 0.0004674788501 | O106: 2.694538682 | P106: 0.5669543731
B107: 99 | C107: 0.5657142857 | D107: 0.5138869874 | E107: 0.5000238964 | F107: 0.001772952686 | G107: 2.619358748 | H107: 0.6147030698 | J107: 99 | K107: KIMCO | L107: 0.4561481385 | M107: 0.4825415604 | N107: 0.005152700707 | O107: 2.693070078 | P107: 0.5682136707
B108: 100 | C108: 0.5714285714 | D108: 0.3416693211 | E108: 0.5017968491 | F108: 0.0003941381666 | G108: 2.609905236 | H108: 0.6193387406 | J108: 100 | K108: KITER | L108: 0.4571143513 | M108: 0.4876942611 | N108: 0.002236199675 | O108: 2.675116968 | P108: 0.5820453861
B109: 101 | C109: 0.5771428571 | D109: 0.6699172515 | E109: 0.5021909872 | F109: 0.0008282043701 | G109: 2.607756032 | H109: 0.6203669809 | J109: 101 | K109: LADDE | L109: 0.7087883927 | M109: 0.4899304608 | N109: 0.0005386503285 | O109: 2.666328774 | P109: 0.5880177671
B110: 102 | C110: 0.5828571429 | D110: 0.5221731529 | E110: 0.5030191916 | F110: 0.005654779247 | G110: 2.603183817 | H110: 0.6225248477 | J110: 102 | K110: LEXIN | L110: 0.5598570702 | M110: 0.4904691111 | N110: 0.002854975628 | O110: 2.664122764 | P110: 0.5894533934
B111: 103 | C111: 0.5885714286 | D111: 0.2135183052 | E111: 0.5086739709 | F111: 0.003710175308 | G111: 2.569967404 | H111: 0.6371529902 | J111: 103 | K111: LIBER | L111: 0.4640262453 | M111: 0.4933240867 | N111: 0.0006027602123 | O111: 2.6518578 | P111: 0.5970421193
B112: 104 | C112: 0.5942857143 | D112: 0.4921041915 | E112: 0.5123841462 | F112: 0.0002523619522 | G112: 2.546327178 | H112: 0.6466446086 | J112: 104 | K112: MACER | L112: 0.4959491595 | M112: 0.4939268469 | N112: 0.000476559219 | O112: 2.649145998 | P112: 0.5986397385
B113: 105 | C113: 0.6 | D113: 0.6586148363 | E113: 0.5126365081 | F113: 2.682300478e-05 | G113: 2.5446674 | H113: 0.6472869954 | J113: 105 | K113: MARCU | L113: 0.3336829713 | M113: 0.4944034061 | N113: 0.001545753349 | O113: 2.646971982 | P113: 0.5999016965
B114: 106 | C114: 0.6057142857 | D114: 0.6375453241 | E114: 0.5126633311 | F114: 0.0002596078497 | G114: 2.544490603 | H114: 0.6473552486 | J114: 106 | K114: MAYSJ | L114: 0.1030665076 | M114: 0.4959491595 | N114: 0.001679760587 | O114: 2.639739023 | P114: 0.6039877078
B115: 107 | C115: 0.6114285714 | D115: 0.6503388879 | E115: 0.512922939 | F115: 0.0009640484485 | G115: 2.542775654 | H115: 0.6480155959 | J115: 107 | K115: MEDIC | L115: 0.5326296338 | M115: 0.4976289201 | N115: 0.0001912749448 | O115: 2.631566796 | P115: 0.608415019
B116: 108 | C116: 0.6171428571 | D116: 0.3621112402 | E116: 0.5138869874 | F116: 0.0003770687689 | G116: 2.536347121 | H116: 0.6504638637 | J116: 108 | K116: MELCO | L116: 0.3302897908 | M116: 0.497820195 | N116: 0.0006607096291 | O116: 2.630615734 | P116: 0.6089182809
B117: 109 | C117: 0.6228571429 | D117: 0.1329590445 | E117: 0.5142640562 | F117: 0.001310701818 | G117: 2.533807079 | H117: 0.6514197626 | J117: 109 | K117: MELCO02 | L117: 0.5147241343 | M117: 0.4984809047 | N117: 0.0009172965199 | O117: 2.627298473 | P117: 0.6106552609
B118: 110 | C118: 0.6285714286 | D118: 0.5086739709 | E118: 0.515574758 | F118: 0.002185301406 | G118: 2.524866515 | H118: 0.6547349877 | J118: 110 | K118: MONMO | L118: 0.479577905 | M118: 0.4993982012 | N118: 0.009908505436 | O118: 2.622610796 | P118: 0.6130631299
B119: 111 | C119: 0.6342857143 | D119: 0.4284471773 | E119: 0.5177600594 | F119: 0.000768501158 | G119: 2.509580241 | H119: 0.6602359654 | J119: 111 | K119: MORGU | L119: 0.4797106269 | M119: 0.5093067066 | N119: 0.001406770966 | O119: 2.566037572 | P119: 0.6387778594
B120: 112 | C120: 0.64 | D120: 0.5944675296 | E120: 0.5185285606 | F120: 0.002719114586 | G120: 2.504093169 | H120: 0.6621624759 | J120: 112 | K120: MORGU02 | L120: 0.4554631291 | M120: 0.5107134776 | N120: 0.0006207214693 | O120: 2.557149655 | P120: 0.6423814592
B121: 113 | C121: 0.6457142857 | D121: 0.4076930753 | E121: 0.5212476752 | F121: 0.0009254777679 | G121: 2.484222003 | H121: 0.6689445365 | J121: 113 | K121: NATIO | L121: 0.4430684157 | M121: 0.511334199 | N121: 0.00191832159 | O121: 2.553162353 | P121: 0.6439675015
B122: 114 | C122: 0.6514285714 | D122: 0.3357338895 | E122: 0.5221731529 | F122: 0.0009581182542 | G122: 2.477298585 | H122: 0.6712404312 | J122: 114 | K122: NATIO02 | L122: 0.09217754984 | M122: 0.5132525206 | N122: 0.0008024449396 | O122: 2.540588552 | P122: 0.648853288
B123: 115 | C123: 0.6571428571 | D123: 0.4817275753 | E123: 0.5231312712 | F123: 0.0006654607081 | G123: 2.4700467 | H123: 0.6736105089 | J123: 115 | K123: NATIO03 | L123: 0.511334199 | M123: 0.5140549656 | N123: 0.000669168718 | O123: 2.535217348 | P123: 0.6508898198
B124: 116 | C124: 0.6628571429 | D124: 0.3920810521 | E124: 0.5237967319 | F124: 0.007566549425 | G124: 2.464959902 | H124: 0.6752525377 | J124: 116 | K124: NEWJE | L124: 0.3192105542 | M124: 0.5147241343 | N124: 0.00263818483 | O124: 2.530688434 | P124: 0.6525847951
B125: 117 | C125: 0.6685714286 | D125: 0.6896515536 | E125: 0.5313632813 | F125: 0.001190073534 | G125: 2.404335439 | H125: 0.6936775932 | J125: 117 | K125: NORTH | L125: 0.5221056369 | M125: 0.5173623191 | N125: 0.0005552347579 | O125: 2.512397464 | P125: 0.6592372434
B126: 118 | C126: 0.6742857143 | D126: 0.8559371623 | E126: 0.5325533548 | F126: 0.02185844199 | G126: 2.394351391 | H126: 0.696533 | J126: 118 | K126: ONELI | L126: 0.5367295012 | M126: 0.5179175539 | N126: 0.001604096953 | O126: 2.508460422 | P126: 0.6606311222
B127: 119 | C127: 0.68 | D127: 0.4031067337 | E127: 0.5544117968 | F127: 0.0004980844803 | G127: 2.192099915 | H127: 0.7467205377 | J127: 119 | K127: PARAM | L127: 0.3563073535 | M127: 0.5195216508 | N127: 0.002583986036 | O127: 2.49691779 | P127: 0.6646457115
B128: 120 | C128: 0.6857142857 | D128: 0.4242114492 | E128: 0.5549098813 | F128: 0.001554514504 | G128: 2.187124431 | H128: 0.7478111501 | J128: 120 | K128: PARTN | L128: 0.6701804602 | M128: 0.5221056369 | N128: 0.000288647332 | O128: 2.477806382 | P128: 0.6710731566
B129: 121 | C129: 0.6914285714 | D129: 0.4909032238 | E129: 0.5564643958 | F129: 0.002652895401 | G129: 2.171505914 | H129: 0.7511989447 | J129: 121 | K129: PEBBL | L129: 0.3288105469 | M129: 0.5223942842 | N129: 0.001933339536 | O129: 2.475632449 | P129: 0.6717880552
B130: 122 | C130: 0.6971428571 | D130: 0.5737496878 | E130: 0.5591172912 | F130: 0.005663118848 | G130: 2.144547079 | H130: 0.7569240464 | J130: 122 | K130: PHYSI | L130: 0.3282209281 | M130: 0.5243276237 | N130: 0.0003384417016 | O130: 2.460872586 | P130: 0.676560081
B131: 123 | C131: =IF(B131="", "", C130+$C$9) -> 0.7028571429 | D131: 0.38168966 | E131: 0.5647804101 | F131: 0.002079580103 | G131: 2.085806281 | H131: 0.7689032759 | J131: 123 | K131: PIEDM | L131: 0.4516973145 | M131: 0.5246660654 | N131: 0.001888632919 | O131: 2.458253501 | P131: 0.6773925
B132: 124 | C132: 0.7085714286 | D132: 0.3626670156 | E132: 0.5668599902 | F132: 0.002905915197 | G132: 2.063862051 | H132: 0.7732180926 | J132: 124 | K132: PLAZA | L132: 0.5558724846 | M132: 0.5265546984 | N132: 0.00155837185 | O132: 2.443447911 | P132: 0.6820213078
B133: 125 | C133: 0.7142857143 | D133: 0.5185285606 | E133: 0.5697659054 | F133: 0.003983782395 | G133: 2.032893026 | H133: 0.7791705872 | J133: 125 | K133: PRORE | L133: 0.6411648344 | M133: 0.5281130702 | N133: 0.002177047495 | O133: 2.430992039 | P133: 0.6858194306
B134: 126 | C134: 0.72 | D134: 0.1420622359 | E134: 0.5737496878 | F134: 0.0002623525964 | G134: 1.989908591 | H134: 0.7871837627 | J134: 126 | K134: PROLO | L134: 0.3535929754 | M134: 0.5302901177 | N134: 0.001079278339 | O134: 2.413236816 | P134: 0.6910925629
B135: 127 | C135: 0.7257142857 | D135: 0.6358725982 | E135: 0.5740120404 | F135: 0.001671214879 | G135: 1.987058007 | H135: 0.7877054466 | J135: 127 | K135: PSBUS | L135: 0.1020984356 | M135: 0.531369396 | N135: 0.001260237783 | O135: 2.404284442 | P135: 0.6936922949
B136: 128 | C136: 0.7314285714 | D136: 0.3255456989 | E136: 0.5756832552 | F136: 0.0006623437606 | G136: 1.968845779 | H136: 0.7910110419 | J136: 128 | K136: PUBLI | L136: 0.06048314456 | M136: 0.5326296338 | N136: 0.001905243554 | O136: 2.393707443 | P136: 0.6967156141
B137: 129 | C137: 0.7371428571 | D137: 0.6648806927 | E137: 0.576345599 | F137: 0.009320253202 | G137: 1.961602944 | H137: 0.7923126968 | J137: 129 | K137: PUREI | L137: 0.4444818894 | M137: 0.5345348774 | N137: 0.002194623773 | O137: 2.377468768 | P137: 0.7012607875
B138: 130 | C138: 0.7428571429 | D138: 0.5975135254 | E138: 0.5856658522 | F138: =IF($B139="", "", E139-E138) -> 0.002135685529 | G138: 1.858402966 | H138: 0.810116124 | J138: 130 | K138: QTSRE | L138: 0.4944034061 | M138: 0.5367295012 | N138: =IF($B139="", "", M139-M138) -> 0.00248430278 | O138: 2.358402108 | P138: 0.7064575847
B139: 131 | C139: 0.7485714286 | D139: 0.6281785598 | E139: 0.5878015377 | F139: 0.003372425301 | G139: 1.834476835 | H139: 0.8140595542 | J139: =IF(K139="", "", J138+1) -> 131 | K139: READI | L139: 0.3702177811 | M139: 0.5392138039 | N139: 0.0008591064679 | O139: 2.33636579 | P139: 0.7122892951
B140: 132 | C140: 0.7542857143 | D140: 0.4853101864 | E140: 0.591173963 | F140: 0.00198764611 | G140: 1.79653785 | H140: 0.8201822666 | J140: 132 | K140: REALT | L140: 0.4317293957 | M140: 0.5400729104 | N140: 0.0006633124887 | O140: 2.328636365 | P140: 0.7142931658
B141: 133 | C141: 0.76 | D141: 0.380776792 | E141: 0.5931616091 | F141: 0.001305920482 | G141: 1.774102229 | H141: 0.8237308592 | J141: 133 | K141: REGEN | L141: 0.3932480808 | M141: 0.5407362229 | N141: 0.003225648681 | O141: 2.322630963 | P141: 0.7158357895
B142: 134 | C142: 0.7657142857 | D142: 0.490353922 | E142: 0.5944675296 | F142: 0.001456905487 | G142: 1.759336751 | H142: 0.8260380563 | J142: 134 | K142: RETAI | L142: 0.4423316738 | M142: 0.5439618716 | N142: 4.143295047e-05 | O142: 2.292971986 | P142: 0.7232801467
B143: 135 | C143: 0.7714285714 | D143: 0.3242284035 | E143: 0.5959244351 | F143: 0.0002957229338 | G143: 1.74284449 | H143: 0.8285892322 | J143: 135 | K143: RETAI02 | L143: 0.4650428836 | M143: 0.5440033045 | N143: 0.002464643413 | O143: 2.292586212 | P143: 0.7233751433
B144: 136 | C144: 0.7771428571 | D144: 0.3398965536 | E144: 0.596220158 | F144: 0.001293367399 | G144: 1.739494652 | H144: 0.829104136 | J144: 136 | K144: REXFO | L144: 0.3409680896 | M144: 0.5464679479 | N144: 0.002614917339 | O144: 2.269425826 | P144: 0.7289970951
B145: 137 | C145: 0.7828571429 | D145: 0.3809036359 | E145: 0.5975135254 | F145: 0.0003444354846 | G145: 1.724836177 | H145: 0.8313444635 | J145: 137 | K145: RIOCA | L145: 0.4156938737 | M145: 0.5490828653 | N145: 0.001535265754 | O145: 2.244409346 | P145: 0.7348988454
B146: 138 | C146: 0.7885714286 | D146: 0.6692642819 | E146: 0.5978579609 | F146: 0.000434792367 | G146: 1.72093058 | H146: 0.8319378857 | J146: 138 | K146: RLJLO | L146: 0.3980333289 | M146: 0.550618131 | N146: 0.004841830105 | O146: 2.229516994 | P146: 0.7383331973
B147: 139 | C147: 0.7942857143 | D147: 0.3033261653 | E147: 0.5982927533 | F147: 0.0004101861037 | G147: 1.715999398 | H147: 0.8326850612 | J147: 139 | K147: RPTRE | L147: 0.4876942611 | M147: 0.5554599611 | N147: 0.0004125234959 | O147: 2.181613155 | P147: 0.7490127281
B148: 140 | C148: 0.8 | D148: 0.4724579402 | E148: 0.5987029394 | F148: 0.001858519818 | G148: 1.71134632 | H148: 0.833387986 | J148: 140 | K148: RYMAN | L148: 0.5803389318 | M148: 0.5558724846 | N148: 2.956809687e-06 | O148: 2.177468886 | P148: 0.7499118403
B149: 141 | C149: 0.8057142857 | D149: 0.4076893111 | E149: 0.6005614592 | F149: 0.00141375871 | G149: 1.690253936 | H149: 0.836548959 | J149: 141 | K149: SABRA | L149: 0.5173623191 | M149: 0.5558754414 | N149: 0.003981628782 | O149: 2.177439147 | P149: 0.7499182786
B150: 142 | C150: =IF(B150="", "", C149+$C$9) -> 0.8114285714 | D150: 0.7033029342 | E150: 0.6019752179 | F150: 0.001660826876 | G150: 1.674201648 | H150: 0.8389272237 | J150: 142 | K150: SAULC | L150: 0.6750447264 | M150: 0.5598570702 | N150: 0.005373048668 | O150: 2.136963402 | P150: 0.7585077339
B151: 143 | C151: 0.8171428571 | D151: 0.836832175 | E151: 0.6036360448 | F151: 0.005969621406 | G151: 1.655340319 | H151: 0.8416921204 | J151: 143 | K151: SELEC | L151: 0.4771496501 | M151: 0.5652301189 | N151: 0.0090105415 | O151: 2.081076953 | P151: 0.7698402184
B152: 144 | C152: 0.8228571429 | D152: 0.3797880852 | E152: 0.6096056662 | F152: 0.006498352205 | G152: 1.587585283 | H152: 0.8513715798 | J152: 144 | K152: SHERW | L152: 0.4028424742 | M152: 0.5742406604 | N152: 0.00380309637 | O152: 1.984572046 | P152: 0.7881594437
B153: 145 | C153: 0.8285714286 | D153: 0.6096056662 | E153: 0.6161040184 | F153: 0.0008457208074 | G153: 1.514096343 | H153: 0.8614492679 | J153: 145 | K153: SIMON | L153: 0.7302489 | M153: 0.5780437568 | N153: 0.002295175023 | O153: 1.942972027 | P153: 0.7956280012
B154: 146 | C154: 0.8342857143 | D154: 0.4305446043 | E154: 0.6169497392 | F154: 0.004016079671 | G154: 1.50456649 | H154: 0.8627257402 | J154: 146 | K154: SLGRE | L154: 0.4652489931 | M154: 0.5803389318 | N154: 0.006110206809 | O154: 1.917659463 | P154: 0.8000584415
B155: 147 | C155: 0.84 | D155: 0.5237967319 | E155: 0.6209658189 | F155: 0.007212740881 | G155: 1.459455432 | H155: 0.8686775302 | J155: 147 | K155: SLATE | L155: 0.5864491386 | M155: 0.5864491386 | N155: 0.009001926451 | O155: 1.849637749 | P155: 0.8115683537
B156: 148 | C156: 0.8457142857 | D156: 0.3834535378 | E156: 0.6281785598 | F156: 0.001454176654 | G156: 1.379182529 | H156: 0.8789140634 | J156: 148 | K156: SMART | L156: 0.4400344309 | M156: 0.595451065 | N156: 0.000220126506 | O156: 1.748205143 | P156: 0.8277629529
B157: 149 | C157: 0.8514285714 | D157: 0.5325533548 | E157: 0.6296327364 | F157: 0.001136157859 | G157: 1.363138138 | H157: 0.8809079665 | J157: 149 | K157: SOTHE | L157: 0.7918562535 | M157: 0.5956711915 | N157: 0.001044571082 | O157: 1.745712568 | P157: 0.8281475049
B158: 150 | C158: 0.8571428571 | D158: 0.3984565029 | E158: 0.6307688943 | F158: 0.003468017799 | G158: 1.350639256 | H158: 0.8824496031 | J158: 150 | K158: SPIRI | L158: 0.5132525206 | M158: 0.5967157626 | N158: 0.0150086969 | O158: 1.733879104 | P158: 0.829964846
B159: 151 | C159: 0.8628571429 | D159: 0.6342369121 | E159: 0.6342369121 | F159: 0.001635686138 | G159: 1.312699957 | H159: 0.8870677619 | J159: 151 | K159: STAGI | L159: 0.4445236744 | M159: 0.6117244595 | N159: 0.0001240314514 | O159: 1.563580886 | P159: 0.8547099088
B160: 152 | C160: 0.8685714286 | D160: 0.637352101 | E160: 0.6358725982 | F160: 0.001479502759 | G160: 1.294923929 | H160: 0.8892003783 | J160: 152 | K160: STORE | L160: 0.4623686515 | M160: 0.611848491 | N160: 0.0009598298293 | O160: 1.5621768 | P160: 0.8549037549
B161: 153 | C161: 0.8742857143 | D161: 0.5987029394 | E161: 0.637352101 | F161: 0.0001932231034 | G161: 1.278914334 | H161: 0.8911043704 | J161: 153 | K161: STRAT | L161: 0.550618131 | M161: 0.6128083208 | N161: 0.001928176264 | O161: 1.551315811 | P161: 0.8563979658
B162: 154 | C162: 0.88 | D162: 0.5878015377 | E162: 0.6375453241 | F162: 0.004476518772 | G162: 1.276828462 | H162: 0.8913512847 | J162: 154 | K162: SUMMI | L162: 0.3945218305 | M162: 0.6147364971 | N162: 0.002661373463 | O162: 1.529525248 | P162: 0.8593681617
B163: 155 | C163: 0.8857142857 | D163: 0.5231312712 | E163: 0.6420218429 | F163: 0.008317045067 | G163: 1.228841805 | H163: 0.8969593785 | J163: 155 | K163: SUMMI02 | L163: 0.5392138039 | M163: 0.6173978705 | N163: 0.001080309606 | O163: 1.499520736 | P163: 0.8633988529
B164: 156 | C164: 0.8914285714 | D164: 0.244234092 | E164: 0.6503388879 | F164: 0.00181172235 | G164: 1.141568491 | H164: 0.9068149934 | J164: 156 | K164: SUNOC | L164: 0.456654421 | M164: 0.6184781801 | N164: 0.02012409656 | O164: 1.487368762 | P164: 0.865012234
B165: 157 | C165: 0.8971428571 | D165: 0.591173963 | E165: 0.6521506103 | F165: 0.006464226066 | G165: 1.122911722 | H165: 0.908866278 | J165: 157 | K165: SUNST | L165: 0.3141272442 | M165: 0.6386022767 | N165: 0.001996390125 | O165: 1.265439313 | P165: 0.8926948099
B166: 158 | C166: 0.9028571429 | D166: 0.835524602 | E166: 0.6586148363 | F166: 0.0001580207668 | G166: 1.057466188 | H166: 0.9159125404 | J166: 158 | K166: TANGE | L166: 0.6772610097 | M166: 0.6405986668 | N166: 0.0005661676194 | O166: 1.244025752 | P166: 0.8951997237
B167: 159 | C167: 0.9085714286 | D167: 0.5756832552 | E167: 0.6587728571 | F167: 0.004702014159 | G167: 1.055889106 | H167: 0.9160795174 | J167: 159 | K167: TERRE | L167: 0.3062881484 | M167: 0.6411648344 | N167: 0.00602443532 | O167: 1.237977029 | P167: 0.895902338
B168: 160 | C168: 0.9142857143 | D168: 0.6521506103 | E168: 0.6634748713 | F168: 0.001405821488 | G168: 1.00948148 | H168: 0.9209348209 | J168: 160 | K168: TOLLB | L168: 0.3824858954 | M168: 0.6471892698 | N168: 0.02299119046 | O168: 1.174312811 | P168: 0.903168024
B169: 161 | C169: 0.92 | D169: 0.6005614592 | E169: 0.6648806927 | F169: 0.00438358911 | G169: 0.9958059404 | H169: 0.922344348 | J169: 161 | K169: TRANS | L169: 0.1867266702 | M169: 0.6701804602 | N169: 0.003645917007 | O169: 0.9451073409 | P169: 0.9274869375
B170: =IF(B169="", "", IF(B169<$F$7, B169+1, "")) -> 162 | C170: 0.9257142857 | D170: 0.237091592 | E170: 0.6692642819 | F170: 0.0006529696646 | G170: 0.9537732531 | H170: 0.926617084 | J170: 162 | K170: TRANS02 | L170: 0.7027603641 | M170: 0.6738263772 | N170: 0.000329237521 | O170: 0.9110389197 | P170: 0.930870411
B171: 163 | C171: 0.9314285714 | D171: 0.5142640562 | E171: 0.6699172515 | F171: 0.0009758989372 | G171: 0.9475926985 | H171: 0.92723785 | J171: 163 | K171: TRIBU | L171: 0.3440130269 | M171: 0.6741556148 | N171: 0.0008891116918 | O171: 0.9079956771 | P171: 0.931169858
B172: 164 | C172: 0.9371428571 | D172: 0.512922939 | E172: 0.6708931505 | F172: 0.01875840314 | G172: 0.9383950937 | H172: 0.9281581129 | J172: 164 | K172: TRUEN | L172: 0.5780437568 | M172: 0.6750447264 | N172: 0.002216283294 | O172: 0.899805171 | P172: 0.9319735235
B173: 165 | C173: 0.9428571429 | D173: 0.4082549647 | E173: 0.6896515536 | F173: 0.004716271922 | G173: 0.7712414097 | H173: 0.9441639153 | J173: 165 | K173: UNIVE | L173: 0.5440033045 | M173: 0.6772610097 | N173: 0.02549935436 | O173: 0.8795668465 | P173: 0.9339452726
B174: 166 | C174: 0.9485714286 | D174: 0.4174251678 | E174: 0.6943678255 | F174: 0.006234556479 | G174: 0.7322206838 | H174: 0.9477087955 | J174: 166 | K174: URBAN | L174: 0.6386022767 | M174: 0.7027603641 | N174: 0.00602802857 | O174: 0.6658804508 | P174: 0.9535728137
B175: 167 | C175: 0.9542857143 | D175: 0.4362398367 | E175: 0.700602382 | F175: 0.0027005522 | G175: 0.6825570282 | H175: 0.9521179094 | J175: 167 | K175: URSTA | L175: 0.2552943854 | M175: 0.7087883927 | N175: 0.01268979716 | O175: 0.62070485 | P175: 0.9574495569
B176: 168 | C176: 0.96 | D176: 0.6036360448 | E176: 0.7033029342 | F176: 0.04508507395 | G176: 0.6617292873 | H176: 0.9539329736 | J176: 168 | K176: VORNA | L176: 0.531369396 | M176: 0.7214781898 | N176: 0.0002531810052 | O176: 0.5323954887 | P176: 0.9647561344
B177: 169 | C177: 0.9657142857 | D177: 0.5212476752 | E177: 0.7483880082 | F177: 0.002003269209 | G177: 0.3750032323 | H177: 0.9768758802 | J177: 169 | K177: WPCAR | L177: 0.4993982012 | M177: 0.7217313708 | N177: 0.002898216041 | O177: 0.5307270014 | P177: 0.9648907155
B178: 170 | C178: 0.9714285714 | D178: 0.7483880082 | E178: 0.7503912774 | F178: 0.08513332462 | G178: 0.364850037 | H178: 0.9776169079 | J178: 170 | K178: WASHI | L178: 0.6184781801 | M178: 0.7246295869 | N178: 0.00561931317 | O178: 0.5118862353 | P178: 0.9664014599
B179: 171 | C179: 0.9771428571 | D179: 0.2727564649 | E179: 0.835524602 | F179: 0.001307573041 | G179: 0.09548086164 | H179: 0.9952024075 | J179: 171 | K179: WASHI02 | L179: 0.5407362229 | M179: 0.7302489 | N179: 0.002118723657 | O179: 0.4767047906 | P179: 0.9691782311
B180: 172 | C180: 0.9828571429 | D180: 0.6587728571 | E180: 0.836832175 | F180: 0.01910498728 | G180: 0.09328725615 | H180: 0.9953258168 | J180: 172 | K180: WEING | L180: 0.5246660654 | M180: 0.7323676237 | N180: 0.001312010681 | O180: 0.4638982832 | P180: 0.970174626
B181: 173 | C181: 0.9885714286 | D181: 0.4576392364 | E181: 0.8559371623 | F181: 0.01011614141 | G181: 0.06582090087 | H181: 0.9968326226 | J181: 173 | K181: WHITE | L181: 0.6128083208 | M181: 0.7336796344 | N181: 0.05817661912 | O181: 0.4560928086 | P181: 0.9707781346
B182: 174 | C182: 0.9942857143 | D182: 0.3827809964 | E182: 0.8660533037 | F182: 0.009046394575 | G182: 0.05434422389 | H182: 0.9974388162 | J182: 174 | K182: WPTIN | L182: 0.4579997661 | M182: 0.7918562535 | N182: 0.06667462307 | O182: 0.1981544513 | P182: 0.9890159234
B183: 175 | C183: 1 | D183: 0.700602382 | E183: 0.8750996983 | G183: 0.0456011087 | H183: 0.9978898774 | J183: 175 | K183: XENIA | L183: 0.4206733819 | M183: 0.8585308766 | O183: 0.0626942989 | P183: 0.99699926
F202: =IF($B203="", "", E203-E202) ->  | N202: =IF($B203="", "", M203-M202) -> 
J203: =IF(K203="", "", J202+1) -> 

Sheet calc
B2: TAB: DISTRIBUTION CALCULATOR
B5: Distribution Object | I5: Distribution Histogram
B7: Object Description | C7: Abbr | D7: Object value | E7: Parameters | I7: Object Description | J7: Abbr | K7: Object value
B8: Matched or alternative distribution based on generated sampe | I8: =B8 -> Matched or alternative distribution based on generated sampe
B9: Distribution index | D9: =D15 -> 10 | E9: =IF(OFFSET(config!E7, $D$9,0)="", "", OFFSET(config!E7, $D$9,0)) -> mean | F9: =IF(OFFSET(config!F7, $D$9,0)="", "", OFFSET(config!F7, $D$9,0)) -> stdev | G9: =IF(OFFSET(config!G7, $D$9,0)="", "", OFFSET(config!G7, $D$9,0)) ->  | I9: Histogram parameters | K9: =_xll.AC.data.map(test!C32:C34, test!D32:D34) -> java.util.LinkedHashMap@Mon, 3 Dec 2018 14:12:30:350..8127087316467667413 | O9: =_xll.AC.data.size(K9, 1) -> 3
B10: Distribution | D10: =config!C17 -> Normal | E10: =IF(OFFSET(test!V12, $D$9,0)="", "", OFFSET(test!V12, $D$9,0)) -> 0.4574605287 | F10: =IF(OFFSET(test!W12, $D$9,0)="", "", OFFSET(test!W12, $D$9,0)) -> 0.1459658162 | G10: =IF(OFFSET(test!X12, $D$9,0)="", "", OFFSET(test!X12, $D$9,0)) ->  | I10: Histogram object | J10: H(x) | K10: =_xll.AC.stats.sample.calc.hist(D27, K9) -> jmathkr.lib.stats.basic.calc.Histogram@Mon, 3 Dec 2018 14:23:36:629..2347371617678546836
B11: Distribution object parameters | D11: =_xll.AC.data.map(E9:F9, E10:F10) -> java.util.LinkedHashMap@Mon, 3 Dec 2018 14:05:25:827..6594279504195519501 | I11: Histogram output object | K11: =_xll.AC.stats.sample.calc.get(calc!K10, "") -> java.util.ArrayList@Mon, 3 Dec 2018 14:23:36:629..5817613651396862894 | O11: =_xll.AC.data.size(K11, 1) -> 40
B12: Distribution object | C12: D | D12: =_xll.AC.stats.distrib.fn(D10, D11) -> jmathkr.lib.stats.distribution.R1.standard.apache.DistributionNormalR1Apache@Mon, 3 Dec 2018 14:23:36:629..8386079392809813382 | I12: Histogram domain | K12: =_xll.AC.data.list_x(OFFSET(test!H11, 0, 0, O11, 1), 1, 1) -> java.util.ArrayList@Mon, 3 Dec 2018 14:23:36:629..311239986441632745 | O12: =_xll.AC.data.size(K12, 1) -> 40
I13: Sample pdf values | J13: pdf(x) | K13: =_xll.AC.stats.distrib.pdf(D12, K12, 1) -> java.util.ArrayList@Mon, 3 Dec 2018 14:23:36:629..483255320158721075 | O13: =_xll.AC.data.size(K13, 1) -> 40
B14: Matched distribution based on historical sample | I14: =B14 -> Matched distribution based on historical sample
B15: =B9 -> Distribution index | D15: 10 | E15: =IF(OFFSET(config!E7, $D$15,0)="", "", OFFSET(config!E7, $D$15,0)) -> mean | F15: =IF(OFFSET(config!F7, $D$15,0)="", "", OFFSET(config!F7, $D$15,0)) -> stdev | G15: =IF(OFFSET(config!G7, $D$15,0)="", "", OFFSET(config!G7, $D$15,0)) ->  | I15: =I9 -> Histogram parameters | K15: =_xll.AC.data.map(test!C32:C34, test!E32:E34) -> java.util.LinkedHashMap@Mon, 3 Dec 2018 14:12:30:350..8127087316467667413 | O15: =_xll.AC.data.size(K15, 1) -> 3
B16: =B10 -> Distribution | D16: =D10 -> Normal | E16: =IF(OFFSET(test!V12, $D$15,0)="", "", OFFSET(test!V12, $D$15,0)) -> 0.4574605287 | F16: =IF(OFFSET(test!W12, $D$15,0)="", "", OFFSET(test!W12, $D$15,0)) -> 0.1459658162 | G16: =IF(OFFSET(test!X12, $D$15,0)="", "", OFFSET(test!X12, $D$15,0)) ->  | I16: =I10 -> Histogram object | J16: =J10 -> H(x) | K16: =_xll.AC.stats.sample.calc.hist(D32, K15) -> jmathkr.lib.stats.basic.calc.Histogram@Mon, 3 Dec 2018 14:23:36:629..8837194665079754400
B17: =B11 -> Distribution object parameters | D17: =_xll.AC.stats.distrib.get(D18, config!N25) -> java.util.ArrayList@Mon, 3 Dec 2018 14:05:23:210..7990039091190993303 | I17: =I11 -> Histogram output object | K17: =_xll.AC.stats.sample.calc.get(calc!K16, "") -> java.util.ArrayList@Mon, 3 Dec 2018 14:12:30:350..4966281083386062117 | O17: =_xll.AC.data.size(K17, 1) -> 40
B18: =B12 -> Distribution object | D18: =_xll.AC.stats.distrib.fn(D16, D31) -> jmathkr.lib.stats.distribution.R1.standard.apache.DistributionNormalR1Apache@Mon, 3 Dec 2018 14:21:13:693..5945545458206773632 | I18: =I12 -> Histogram domain | K18: =_xll.AC.data.list_x(OFFSET(test!M11,0, 0, O11, 1), 1, 1) -> java.util.ArrayList@Mon, 3 Dec 2018 14:14:04:085..2772695393865934484 | O18: =_xll.AC.data.size(K18, 1) -> 40
I19: =I13 -> Sample pdf values | J19: =J13 -> pdf(x) | K19: =_xll.AC.stats.distrib.pdf(D18, K18, 1) -> java.util.ArrayList@Mon, 3 Dec 2018 14:14:04:085..6841351965175992875 | O19: =_xll.AC.data.size(K19, 1) -> 40
B21: Distribution Sample | I21: Distribution Testing
B23: Sample size | C23: #x | D23: =_xll.AC.data.size(D31, 1) -> 175 | I23: Test historical sample | K23: 1
I24: Test name | K24: =config!J25 -> Kolmogorov-Smirnov
B25: Generated sample
B26: Sample object | C26: x | D26: =_xll.AC.stats.distrib.sample(D12, D23) -> java.util.ArrayList@Mon, 3 Dec 2018 14:23:36:629..1396116517647908919 | I26: Distribution test object | J26: T(D, x) | K26: =_xll.AC.stats.distrib.test(K24, IF(K23=1, D18, D12), IF(K23=1, D32, D27)) -> jmathkr.lib.stats.testing.distribution.TestKolmogorovSmirnov@Mon, 3 Dec 2018 14:21:13:693..3767332949092719882
B27: Sorted sample object | C27: x-sorted | D27: =_xll.AC.data.sort(D26) -> java.util.ArrayList@Mon, 3 Dec 2018 14:23:36:629..5037156489196331460
B28: Sample pdf values | C28: pdf(x) | D28: =_xll.AC.stats.distrib.pdf(D12, D27, 0) -> java.util.ArrayList@Mon, 3 Dec 2018 14:23:36:629..4937623635342669637 | I28: Test against multiple distributions
B29: Sample cdf values | C29: cdf(x) | D29: =_xll.AC.stats.distrib.cdf(D12, D27) -> java.util.ArrayList@Mon, 3 Dec 2018 14:23:36:629..5433752167123387836 | I29: List of distributions | K29: =_xll.AC.data.list_x(config!D8:D21, 0, 1) -> java.util.ArrayList@Mon, 3 Dec 2018 14:05:25:730..2230462459768513354
B30: Historical sample | I30: List of distribution test objects | K30: =_xll.AC.stats.distrib.test(K24, K29, IF(K23=1, D31, D26)) -> java.util.ArrayList@Mon, 3 Dec 2018 14:07:22:928..3492220052363887442
B31: =B26 -> Sample object | C31: =C26 -> x | D31: =_xll.AC.data.list_x(data!L9:L500, 1, 1) -> java.util.ArrayList@Mon, 3 Dec 2018 14:05:23:093..7998275976663790045 | I31: Estimated distribution parameters | J31: D-params | K31: =_xll.AC.stats.distrib.get(K30, config!N25) -> java.util.ArrayList@Mon, 3 Dec 2018 14:05:25:815..4554001326695000499
B32: =B27 -> Sorted sample object | C32: x-sorted | D32: =_xll.AC.data.sort(D31) -> java.util.ArrayList@Mon, 3 Dec 2018 14:05:23:143..5193277344128936534 | I32: Estimated tests p-values | J32: P-value | K32: =_xll.AC.stats.distrib.get(K30, config!N27) -> java.util.ArrayList@Mon, 3 Dec 2018 14:05:25:810..1904297952569768451
B33: =B27 -> Sorted sample object | C33: pdf(x) | D33: =_xll.AC.stats.distrib.pdf(D18, D32, 0) -> java.util.ArrayList@Mon, 3 Dec 2018 14:05:23:210..624569471975776218
B34: Sample cdf values | C34: cdf(x) | D34: =_xll.AC.stats.distrib.cdf(D18, D32) -> java.util.ArrayList@Mon, 3 Dec 2018 14:05:23:210..8264033431382009645

Sheet config
B2: TAB: CONFIGURATION FILE | F2: Calculation enabled | H2: FALSE
S3: =calc!B8 -> Matched or alternative distribution based on generated sampe
B4: Standard distributions
B6: # | C6: Distribution name | D6: Notation | E6: Parameters | H6: Default values | J6: Parameter values | M6: Statistics | P6: Distribution support | S6: Name | T6: Parameters
E7: p1 | F7: p2 | G7: p3 | J7: v1 | K7: v2 | L7: v3 | M7: mean | N7: stdev | O7: mode | P7: min | Q7: max | T7: p1 | U7: p2 | V7: p3
B8: 1 | C8: Beta | D8: Beta | E8: alpha | F8: beta | J8: =IF($S$8=$C8, IF(T$9="", "", T$9), IF($S$17=$C8, IF(T$18="", "", T$18), "")) ->  | K8: =IF($S$8=$C8, IF(U$9="", "", U$9), IF($S$17=$C8, IF(U$18="", "", U$18), "")) ->  | L8: =IF($S$8=$C8, IF(V$9="", "", V$9), IF($S$17=$C8, IF(V$18="", "", V$18), "")) ->  | M8: =IF(OR($S$8=C8, $S$17=C8), J8/(J8+K8), "") ->  | O8: =IF(OR($S$8=C8, $S$17=C8), (J8-1)/(J8+K8-2), "") ->  | P8: 0 | Q8: 1 | S8: =calc!D10 -> Normal | T8: =IF(calc!E9="", "", calc!E9) -> mean | U8: =IF(calc!F9="", "", calc!F9) -> stdev | V8: =IF(calc!G9="", "", calc!G9) -> 
B9: =B8+1 -> 2 | C9: Chi-squred | D9: Chi2 | E9: mu | M9: =IF(OR($S$8=C9, $S$17=C9), J9, "") ->  | P9: 0 | Q9: =IF(M9="", "", M9+$Q$22*N9) ->  | T9: =IF(calc!E10="", "", calc!E10) -> 0.4574605287 | U9: =IF(calc!F10="", "", calc!F10) -> 0.1459658162 | V9: =IF(calc!G10="", "", calc!G10) -> 
B10: =B9+1 -> 3 | C10: Exponential | D10: Exponential | E10: mu | M10: =IF(OR($S$8=C10, $S$17=C10), 1/J9, "") ->  | P10: 0
B11: 4 | C11: Fisher | D11: F | E11: df1 | F11: df2 | M11: =IF(OR($S$8=C11, $S$17=C11), J11/(J11-2), "") ->  | O11: =IF(OR($S$8=C11, $S$17=C11), J11*(K11-2)/((J11+2)*K11), "") ->  | P11: 0
B12: 5 | C12: Gamma | D12: Gamma | E12: alpha | F12: beta | M12: =IF(OR($S$8=C12, $S$17=C12), J12/K12, "") ->  | N12: =IF(OR($S$8=C12, $S$17=C12), SQRT(J12/(K12*K12)), "") ->  | P12: 0 | S12: =calc!B14 -> Matched distribution based on historical sample
B13: 6 | C13: Geometric | D13: Geometric | E13: mu | M13: =IF(OR($S$8=C13, $S$17=C13), 1/J13, "") ->  | P13: 0
B14: 7 | C14: Laplace | D14: Laplace | E14: mu | F14: b | M14: =IF(OR($S$8=C14, $S$17=C14), J14, "") ->  | N14: =IF(OR($S$8=C14, $S$17=C14), SQRT(2*K14*K14), "") ->  | P14: =IF(M14="", "", M14-$Q$22*N14) -> 
B15: 8 | C15: Logistic | D15: Logistic | E15: mu | F15: s | M15: =IF(OR($S$8=C15, $S$17=C15), J15, "") ->  | N15: =IF(OR($S$8=C15, $S$17=C15), SQRT(K15*K15*PI()*PI()/3), "") ->  | P15: =IF(M15="", "", M15-$Q$22*N15) ->  | S15: Name | T15: Parameters
B16: 9 | C16: Log-Normal | D16: Log-Normal | E16: mean | F16: stdev | H16: μ = 0; σ = 1 | M16: =IF(OR($S$8=C16, $S$17=C16), EXP(J16+K16*K16/2), "") ->  | N16: =IF(OR($S$8=C16, $S$17=C16), SQRT((EXP(K16*K16)-1)*EXP(2*J16+K16*K16)), "") ->  | P16: =IF(M16="", "", M16-$Q$22*N16) ->  | T16: p1 | U16: p2 | V16: p3
B17: 10 | C17: Normal | D17: Normal | E17: mean | F17: stdev | H17: μ = 0; σ = 1 | J17: 0.4574605287 | K17: 0.1459658162 | M17: =IF(OR($S$8=C17, $S$17=C17), J17, "") -> 0.4574605287 | N17: =IF(OR($S$8=C17, $S$17=C17), K17, "") -> 0.1459658162 | P17: =IF(M17="", "", M17-$Q$22*N17) -> 0.01956308004 | Q17: 0.8953579774 | S17: =calc!D16 -> Normal | T17: =IF(calc!E15="", "", calc!E15) -> mean | U17: =IF(calc!F15="", "", calc!F15) -> stdev | V17: =IF(calc!G15="", "", calc!G15) -> 
B18: 11 | C18: Poisson | D18: Poisson | E18: lambda | F18: scale | M18: =IF(OR($S$8=C18, $S$17=C18), J18/K18, "") ->  | N18: =IF(OR($S$8=C18, $S$17=C18), SQRT(J18)/K18, "") ->  | P18: 0 | T18: =_xll.AC.data._get(calc!D17, "X", 1) -> 0.4574605287 | U18: 0.1459658162 | V18: =IF(calc!G16="", "", calc!G16) -> 
B19: 12 | C19: Student T | D19: T | E19: nu | N19: =IF(OR($S$8=C19, $S$17=C19), IF(J19>2, SQRT(J19/(J19-2)), ""), "") ->  | P19: =IF(M19="", "", M19-$Q$22*N19) -> 
B20: 13 | C20: Triangular | D20: Triangular | E20: a | F20: b | G20: c | M20: =IF(OR($S$8=C20, $S$17=C20), (J20+K20+L20)/3, "") ->  | P20: =IF(J20="", "", J20) ->  | Q20: =IF(K20="", "", K20) -> 
B21: 14 | C21: Uniform | D21: Uniform | E21: a | F21: b | H21: a = 0; b = 1 | M21: =IF(OR($S$8=C21, $S$17=C21), (J21+K21)/2, "") ->  | P21: =IF(J21="", "", J21) -> 
O22: deviation from mean | Q22: 3
B23: Array parameters | J23: Distribution tests | N23: Output keys
B24: # | C24: Cell address | D24: Row count | E24: Col count | F24: Comment | J24: Name | L24: Description | N24: Key | O24: Description
B25: 1 | C25: =addressFla(data!D9) -> 'data'!$D$9 | D25: =calc!D23 -> 175 | E25: 1 | F25: generated sample | J25: Kolmogorov-Smirnov | N25: distrib-params | O25: Parameters of tested distributions
B26: =B25+1 -> 2 | C26: =addressFla(data!E9) -> 'data'!$E$9 | D26: =D25 -> 175 | E26: 1 | F26: sorted generated sample | J26: Pearson-Chi2 | N26: stats-value | O26: Estimated statistics
B27: =B26+1 -> 3 | C27: =addressFla(data!G9) -> 'data'!$G$9 | D27: =D26 -> 175 | E27: =E26 -> 1 | F27: pdf of generated sample | N27: p-value | O27: Estimated statistics p-values
B28: 4 | C28: =addressFla(test!K11) -> 'test'!$K$11 | D28: =test!D34 -> 40 | E28: =E26 -> 1 | F28: pdf of generated sample
B29: 5 | C29: =addressFla(data!H9) -> 'data'!$H$9 | D29: =D26 -> 175 | E29: 1 | F29: cdf of generated sample | J29: Test connection | L29: =_xll.AC.test.connection() -> host: CA2013466W3; user: Konstantin.Rybakov; key: null
B30: 6 | C30: =addressFla(test!H11) -> 'test'!$H$11 | D30: =test!D34 -> 40 | E30: 3 | F30: histogram of generated sample
B31: 7 | C31: =addressFla(data!M9) -> 'data'!$M$9 | D31: =D26 -> 175 | E31: =E26 -> 1 | F31: sorted historical sample
B32: 8 | C32: =addressFla(data!O9) -> 'data'!$O$9 | D32: =D31 -> 175 | E32: =E31 -> 1 | F32: pdf of historical sample | J32: Graph configuration
B33: 9 | C33: =addressFla(test!P11) -> 'test'!$P$11 | D33: =test!E34 -> 40 | E33: =E28 -> 1 | F33: pdf of historical sample
B34: 10 | C34: =addressFla(data!P9) -> 'data'!$P$9 | D34: 175 | E34: 1 | F34: cdf of historical sample | J34: line | K34: yes | M34: Set to yes/no to set line visible or non-visible
B35: 11 | C35: =addressFla(test!M11) -> 'test'!$M$11 | D35: =test!E34 -> 40 | E35: 3 | F35: histogram of historical sample | J35: line-size | K35: 1.5 | M35: Set line size
J36: marker | K36: no | M36: Set to yes/no to set markers visible or non-visible
J37: marker-size | K37: 3 | M37: Set markers size
J38: exclude-series | K38: sample | M38: List of series names that are not modified
J39: exclude-charts | M39: List of charts that are not modified
J40: reference-chart | K40: 1 | M40: Chart index used for series colors mar]tching
J41: match-colors | K41: yes | M41: Set yes if colors of each series is matched to the series color in the reference chart

Sheet guide
B2: Package: AC.stats.distrib Available functions: 1.
